{"text_format":"1","workbook":"xlsx","n_sheets":8,"sheets":["Έντυπο 1","Έντυπο 2","ΛΙΣΤΕΣ","Reporting Details","Λεπτομέρειες Αναφοράς","Definitions - Explanations","Ορισμοί - Επεξηγήσεις","Σφάλματα Επικύρωσης"],"not_rendered":{"charts":0,"images":7,"macros":1,"external_links":0,"defined_names":17,"comments":1,"pivot_tables":0},"unopened":[],"bounds":{"document_bytes":16777216,"sheet_cells":100000,"rows_first":2000,"rows_last":500,"rows_between":2000,"halvings":0,"cell_chars":16384,"cell_head_chars":4096},"cells_cut":0,"cells_raw":0,"read":"whole","date_system":"1900"}

{"sheet":"Έντυπο 1","index":0,"n_rows":31,"n_cols":15,"rows_kept":31,"cut":false,"hidden":false,"merged":[[5,4,5,5],[7,4,7,5],[10,4,10,5],[13,4,13,5],[17,4,17,5]]}
["RT_CODE","QOFATS",null,null,null,null,null,"Values Submitted in Column F","Error Messages","Greek Translation","English Translation",null,null,"DROP-DOWN LISTS"]
["RE_NAME",{"$f":"F15","v":0},null,null,{"$f":"IF(LANG_SELECTED=\"GR\",J2,K2)","v":"Κεντρική Τράπεζα της Κύπρου"},{"$f":"H2","v":"GR"},null,"GR",null,"Κεντρική Τράπεζα της Κύπρου","Central Bank of Cyprus"]
["REF_DATE",{"$f":"\"31/12/\"&F12","v":"31/12/"},null,null,{"$f":"IF(LANG_SELECTED=\"GR\",J3,K3)","v":"Ευρωσύστημα"},{"$f":"IF(LANG_SELECTED=\"GR\",\"Έρευνα 'OFATS'\",\"OFATS survey\")","v":"Έρευνα 'OFATS'"},null,null,null,"Ευρωσύστημα","Eurosystem"]
[null,null,null,null,{"$f":"IF(LANG_SELECTED=\"GR\",J4,K4)","v":"Τμήμα Στατιστικής"},{"$f":"IF(LANG_SELECTED=\"GR\",\"Έκδοση \",\"Version \") & $B$9","v":"Έκδοση 20190308"},null,null,null,"Τμήμα Στατιστικής","Statistics Department "]
[]
["SCHEDULE VAR","SCHEDULE VAR VALUES",null,null,{"$f":"IF(LANG_SELECTED=\"GR\",J6,K6)","v":"ΣΤΟΙΧΕΙΑ ΠΑΡΟΥΣΑΣ ΑΝΑΦΟΡΑΣ"},null,null,null,null,"ΣΤΟΙΧΕΙΑ ΠΑΡΟΥΣΑΣ ΑΝΑΦΟΡΑΣ","Survey on Outward Foreign Affiliates Statistics"]
["RS_CODE","QOFATS_FORM1"]
["CUR_CODE","EUR",null,null,{"$f":"IF(LANG_SELECTED=\"GR\",J8,K8)","v":"Έντυπο 1: Γενικές Πληροφορίες"},null,null,null,null,"Έντυπο 1: Γενικές Πληροφορίες","Form 1: General Information"]
["VERSION_NO","20190308","VAR NAMES","6..6"]
[null,null,null,"VAR VALUES"]
[null,null,null,null,{"$f":"IF(LANG_SELECTED=\"GR\",J11,K11)","v":"ΠΕΡΙΟΔΟΣ ΑΝΑΦΟΡΑΣ"},null,null,null,null,"ΠΕΡΙΟΔΟΣ ΑΝΑΦΟΡΑΣ","Reference period",null,null,"Language","Ref. Year"]
[null,null,"DRI_CODE","SRV_YEAR",{"$f":"IF(LANG_SELECTED=\"GR\",J12,K12)","v":"Έτος Αναφοράς"},null,"*",null,{"$f":"IF(AND(LEN(H12)=0,G12=\"*\"), IF(LANG_SELECTED=\"GR\",\"Το πεδίο \",\"The \")& \"<\" &E12 &\"> \" & IF(LANG_SELECTED=\"GR\",\"πρέπει να καθοριστεί \",\"should be filled\"),\"\")","v":"Το πεδίο <Έτος Αναφοράς> πρέπει να καθοριστεί "},"Έτος Αναφοράς","Reference year",null,null,"EN",2013]
[null,null,null,null,null,null,null,null,null,null,null,null,null,"GR",2014]
[null,null,null,null,{"$f":"IF(LANG_SELECTED=\"GR\",J14,K14)","v":"Στοιχεία ταυτότητας τελικής θεσμικής μονάδας κατοίκου Κύπρου"},null,null,null,null,"Στοιχεία ταυτότητας τελικής θεσμικής μονάδας κατοίκου Κύπρου","Details of the Cypriot ultimate controlling instutional unit",null,null,null,2015]
[null,null,"DRI_CODE","RES_NAME",{"$f":"IF(LANG_SELECTED=\"GR\",J15,K15)","v":"Όνομα"},null,"*",{"$f":"IF(LEN(F15)>0,TRIM(F15),\"\")","v":""},{"$f":"IF(AND(LEN(H15)=0,G15=\"*\"), IF(LANG_SELECTED=\"GR\",\"Το πεδίο \",\"The \")& \"<\" &E15 &\"> \" & IF(LANG_SELECTED=\"GR\",\"πρέπει να καθοριστεί \",\"should be filled\"),\"\")","v":"Το πεδίο <Όνομα> πρέπει να καθοριστεί "},"Όνομα","Name",null,null,null,2016]
[null,null,"DRI_CODE","RES_REG_NO",{"$f":"IF(LANG_SELECTED=\"GR\",J16,K16)","v":"Αριθμός αναφοράς"},null,"*",{"$f":"IF(LEN(F16)>0,TRIM(F16),\"\")","v":""},{"$f":"IF(AND(LEN(H16)=0,G16=\"*\"), IF(LANG_SELECTED=\"GR\",\"Το πεδίο \",\"The \")& \"<\" &E16 &\"> \" & IF(LANG_SELECTED=\"GR\",\"πρέπει να καθοριστεί \",\"should be filled\"),\"\")","v":"Το πεδίο <Αριθμός αναφοράς> πρέπει να καθοριστεί "},"Αριθμός αναφοράς","Reference number",null,null,null,2017]
[null,null,null,null,null,null,null,null,null,null,null,null,null,null,2018]
[null,null,null,null,{"$f":"IF(LANG_SELECTED=\"GR\",J18,K18)","v":"Στοιχεία υπεύθυνου ατόμου για τη συμπλήρωση της έρευνας/ αντιπροσώπου"},null,null,null,null,"Στοιχεία υπεύθυνου ατόμου για τη συμπλήρωση της έρευνας/ αντιπροσώπου","Details of the person responsible for filling in the survey/ representative",null,null,null,2019]
[null,null,"DRI_CODE","REPORTING_OFFICER","Ονοματεπώνυμο",null,"*","",{"$f":"IF(AND(LEN(H19)=0,G19=\"*\"), IF(LANG_SELECTED=\"GR\",\"Το πεδίο \",\"The \")& \"<\" &E19 &\"> \" & IF(LANG_SELECTED=\"GR\",\"πρέπει να καθοριστεί \",\"should be filled\"),\"\")","v":"Το πεδίο <Ονοματεπώνυμο> πρέπει να καθοριστεί "},"Ονοματεπώνυμο","Representative's name",null,null,null,2020]
[null,null,"DRI_CODE","REPORTING_COMPANY","Στοιχεία εργοδότη",null,"*","",{"$f":"IF(AND(LEN(H20)=0,G20=\"*\"), IF(LANG_SELECTED=\"GR\",\"Το πεδίο \",\"The \")& \"<\" &E20 &\"> \" & IF(LANG_SELECTED=\"GR\",\"πρέπει να καθοριστεί \",\"should be filled\"),\"\")","v":"Το πεδίο <Στοιχεία εργοδότη> πρέπει να καθοριστεί "},"Στοιχεία εργοδότη","Employer's name",null,null,null,2021]
[null,null,"DRI_CODE","REPORTING_POSTAL","Ταχυδρομική διεύθυνση",null,"*","",{"$f":"IF(AND(LEN(H21)=0,G21=\"*\"), IF(LANG_SELECTED=\"GR\",\"Το πεδίο \",\"The \")& \"<\" &E21 &\"> \" & IF(LANG_SELECTED=\"GR\",\"πρέπει να καθοριστεί \",\"should be filled\"),\"\")","v":"Το πεδίο <Ταχυδρομική διεύθυνση> πρέπει να καθοριστεί "},"Ταχυδρομική διεύθυνση","Postal address",null,null,null,2022]
[null,null,"DRI_CODE","REPORTING_TELEPHONE","Αριθμός τηλεφώνου",null,"*","",{"$f":"IF(AND(LEN(H22)=0,G22=\"*\"), IF(LANG_SELECTED=\"GR\",\"Το πεδίο \",\"The \")& \"<\" &E22 &\"> \" & IF(LANG_SELECTED=\"GR\",\"πρέπει να καθοριστεί \",\"should be filled\"),\"\")","v":"Το πεδίο <Αριθμός τηλεφώνου> πρέπει να καθοριστεί "},"Αριθμός τηλεφώνου","Telephone number",null,null,null,2023]
[null,null,"DRI_CODE","REPORTING_FAX","Αριθμός τηλεομοιότυπου",null,null,"",null,"Αριθμός τηλεομοιότυπου","Fax number",null,null,null,2024]
[null,null,"DRI_CODE","REPORTING_EMAIL","Ηλεκτρονική Διεύθυνση",null,"*","",{"$f":"IF(AND(LEN(H24)=0,G24=\"*\"), IF(LANG_SELECTED=\"GR\",\"Το πεδίο \",\"The \")& \"<\" &E24 &\"> \" & IF(LANG_SELECTED=\"GR\",\"πρέπει να καθοριστεί \",\"should be filled\"),\"\")","v":"Το πεδίο <Ηλεκτρονική Διεύθυνση> πρέπει να καθοριστεί "},"Ηλεκτρονική Διεύθυνση","E-mail address",null,null,null,2025]
[null,null,null,null,null,null,null,null,null,null,null,null,null,null,2026]
[null,null,null,null,null,null,null,null,null,"Επικύρωση Υποβολής","Validate Submission",null,null,null,2027]
[null,null,null,null,null,null,null,null,null,null,null,null,null,null,2028]
[null,null,"DRI_CODE","VALIDATED",{"$f":"IF(LANG_SELECTED=\"GR\",\"Αποτελέσματα επικύρωσης στοιχείων:\",\"Validation Results:\")","v":"Αποτελέσματα επικύρωσης στοιχείων:"},{"$f":"IF(H28=\"N\",IF(LANG_SELECTED=\"GR\",\"ΒΡΕΘΗΚΑΝ ΛΑΘΗ ΚΑΤΑ ΤΗΝ ΕΠΙΚΥΡΩΣΗ\",\"ERRORS FOUND DURING VALIDATION\"),IF(H28=\"Y\",IF(LANG_SELECTED=\"GR\",\"Επικυρώθηκε με επιτυχία!\",\"Validation successful!\"),\"\"))","v":""}]
[null,null,"DRI_CODE","DATE_VALID",{"$f":"IF(LANG_SELECTED=\"GR\",\"Τελευταία επικύρωση:\",\"Last Validated on:\")","v":"Τελευταία επικύρωση:"}]
["}$"]
[null,null,null,null,{"$f":"IF(LANG_SELECTED=\"GR\",\"ΣΗΜΕΙΩΣΗ:     * Υποδηλώνει υποχρεωτικό πεδίο\",\"ΝΟΤΕ:     * denotes mandatory cell\")","v":"ΣΗΜΕΙΩΣΗ:     * Υποδηλώνει υποχρεωτικό πεδίο"}]

{"sheet":"Έντυπο 2","index":1,"n_rows":28,"n_cols":29,"rows_kept":28,"cut":false,"hidden":false,"merged":[[4,4,4,15],[6,4,6,15],[8,10,8,11],[13,15,14,15]]}
[null,null,null,null,{"$f":"'Έντυπο 1'!E2","v":"Κεντρική Τράπεζα της Κύπρου"},null,null,null,null,null,null,null,null,null,null,{"$f":"'Έντυπο 1'!F2","v":"GR"}]
[null,null,null,null,{"$f":"'Έντυπο 1'!E3","v":"Ευρωσύστημα"},null,null,null,null,null,null,null,null,null,null,{"$f":"'Έντυπο 1'!F3","v":"Έρευνα 'OFATS'"}]
[null,null,null,null,{"$f":"'Έντυπο 1'!E4","v":"Τμήμα Στατιστικής"},null,null,null,null,null,null,null,null,null,null,{"$f":"'Έντυπο 1'!H12","v":0},null,"Περίοδος αναφοράς: ","Reporting Period: "]
[]
[null,null,null,null,{"$f":"IF(LANG_SELECTED=\"GR\",R5,S5)","v":"Έρευνα Διάρθρωσης και Δραστηριοτήτων Αλλοδαπών Συνδεόμενων Επιχειρήσεων \"ΑΣΕ\""},null,null,null,null,null,null,null,null,null,null,null,null,"Έρευνα Διάρθρωσης και Δραστηριοτήτων Αλλοδαπών Συνδεόμενων Επιχειρήσεων \"ΑΣΕ\"","Survey on Outward Foreign Affiliates Statistics \"FAE\""]
[]
["SCHEDULE VAR","SCHEDULE VAR VALUES",null,null,{"$f":"IF(LANG_SELECTED=\"GR\",R7,S7)","v":"Έντυπο 2:  Στοιχεία  \"ΑΣΕ\"  που ελέγχονται άμεσα/έμμεσα από νομικές οντότητες κατοίκους Κύπρου"},null,null,null,null,null,null,null,null,null,null,null,null,"Έντυπο 2:  Στοιχεία  \"ΑΣΕ\"  που ελέγχονται άμεσα/έμμεσα από νομικές οντότητες κατοίκους Κύπρου","Form 2:  Details of the ''FAE'' which are directly/indirectly controlled by the resident legal entity"]
["RS_CODE","QOFATS_FORM2",null,null,null,null,null,null,null,null,null,null,null,null,null,null,null,"Προσθέστε γραμμές","INSERT LINE"]
["CUR_CODE","EUR"]
[null,null,"VAR NAMES","5..13","X","X","X","X","X","X","X","X","X","X","X","X"]
[null,null,null,"VAR VALUES","QOFATS_FRM2_C_1","QOFATS_FRM2_C_2","QOFATS_FRM2_C_3","QOFATS_FRM2_C_4","QOFATS_FRM2_C_5","QOFATS_FRM2_C_6","QOFATS_FRM2_C_7","QOFATS_FRM2_C_8","QOFATS_FRM2_C_9","QOFATS_FRM2_C_10","QOFATS_FRM2_C_11","QOFATS_FRM2_C_12",null,"Choose from the dropdown list","Enter the amount (€)","Enter the number","Enter the name"]
[null,null,null,"GR","Όνομα \"ΑΣΕ\"\n(όπως είναι καταχωρημένο σε επίσημα μητρώα)","Κώδικας Χώρας στην οποία είναι εγγεγραμμένη η \"ΑΣΕ\"","Οικονομική δραστηριότητα της \"ΑΣΕ\"","Διευκρινίστε κατά πόσο η \"ΑΣΕ\" εμπίπτει στον ορισμό που δίδεται για τη \"Διακριτική οντότητα\" ","Τύπος ελέγχου που ασκείται από την κάτοικο οντότητα στην \"ΑΣΕ\"",null,"Κύκλος εργασιών της \"ΑΣΕ\"","Αριθμός ατόμων που εργοδοτούνται στην \"ΑΣΕ\": (ανά κεφαλή για τη δωδεκάμηνη περίοδο αναφοράς)\n","Δαπάνες προσωπικού της \"ΑΣΕ\"","Προστιθέμενη αξία σε τιμές κόστους συντελεστών παραγωγής της \"ΑΣΕ\"","Συνολικό ενεργητικό της \"ΑΣΕ\"","Σχόλια",null,"Επιλέξτε από την αναπτυσσόμενη λίστα","Καταχωρήστε το ποσό (€)","Καταχωρήστε τον αριθμό","Καταχωρήστε το όνομα"]
[null,null,null,"EN","Name of the \"FAE\"\n(as it is recorded in official registers)","Country code in which the \"FAE\" is registered","Economic activity of the \"FAE\"","Specify whether the  \"FAE\" falls under the given definition of a \"Distinctive Enterprise\"","Type of Control exerted by the resident entity on the \"FAE\"",null,"Turnover of the \"FAE\"","Number of persons employed in the \"FAE\": (head count for the 12 month reporting period)\n","Personnel costs of the \"FAE\"","Value added at factor cost of the \"FAE\"","Total assets of the \"FAE\"","Free text",null,null,null,"ERR","ERR","ERR","ERR","ERR","ERR","ERR","ERR","ERR","ERR-SUM"]
[null,null,null,null,{"$f":"IF(LANG_SELECTED=\"GR\",E12,E13)","v":"Όνομα \"ΑΣΕ\"\n(όπως είναι καταχωρημένο σε επίσημα μητρώα)"},{"$f":"IF(LANG_SELECTED=\"GR\",F12,F13)","v":"Κώδικας Χώρας στην οποία είναι εγγεγραμμένη η \"ΑΣΕ\""},{"$f":"IF(LANG_SELECTED=\"GR\",G12,G13)","v":"Οικονομική δραστηριότητα της \"ΑΣΕ\""},{"$f":"IF(LANG_SELECTED=\"GR\",H12,H13)","v":"Διευκρινίστε κατά πόσο η \"ΑΣΕ\" εμπίπτει στον ορισμό που δίδεται για τη \"Διακριτική οντότητα\" "},{"$f":"IF(LANG_SELECTED=\"GR\",I12,I13)","v":"Τύπος ελέγχου που ασκείται από την κάτοικο οντότητα στην \"ΑΣΕ\""},"Code for type of control",{"$f":"IF(LANG_SELECTED=\"GR\",K12,K13)","v":"Κύκλος εργασιών της \"ΑΣΕ\""},"Αριθμός ατόμων που εργοδοτούνται στην \"ΑΣΕ\": (ανά κεφαλή για τη δωδεκάμηνη περίοδο αναφοράς)\n","Δαπάνες προσωπικού της \"ΑΣΕ\"","Προστιθέμενη αξία σε τιμές κόστους συντελεστών παραγωγής της \"ΑΣΕ\"","Συνολικό ενεργητικό της \"ΑΣΕ\"","Σχόλια","Message:","EMPTY","Company & Country code",{"$f":"IF(LANG_SELECTED=\"GR\",\"Το πεδίο \",\"The \")&\"<\"&E14&\"> \"&IF(LANG_SELECTED=\"GR\",\"πρέπει να καθοριστεί \",\"should be filled\")","v":"Το πεδίο <Όνομα \"ΑΣΕ\"\n(όπως είναι καταχωρημένο σε επίσημα μητρώα)> πρέπει να καθοριστεί "},{"$f":"IF(LANG_SELECTED=\"GR\",\"Το πεδίο \",\"The \")&\"<\"&F14&\"> \"&IF(LANG_SELECTED=\"GR\",\"πρέπει να καθοριστεί \",\"should be filled\")","v":"Το πεδίο <Κώδικας Χώρας στην οποία είναι εγγεγραμμένη η \"ΑΣΕ\"> πρέπει να καθοριστεί "},{"$f":"IF(LANG_SELECTED=\"GR\",\"Το όνομα της 'ΑΣΕ' πρέπει να είναι ΜΟΝΑΔΙΚΟ για κάθε χώρα \",\"The name of the 'FAE' for specific country should be UNIQUE\")","v":"Το όνομα της 'ΑΣΕ' πρέπει να είναι ΜΟΝΑΔΙΚΟ για κάθε χώρα "},{"$f":" IF(LANG_SELECTED=\"GR\",\"Το πεδίο \",\"The \")& \"<\" & G14 &\"> \" & IF(LANG_SELECTED=\"GR\",\"πρέπει να καθοριστεί \",\"should be filled\")","v":"Το πεδίο <Οικονομική δραστηριότητα της \"ΑΣΕ\"> πρέπει να καθοριστεί "},{"$f":" IF(LANG_SELECTED=\"GR\",\"Το πεδίο \",\"The \")& \"<\" & I14 &\"> \" & IF(LANG_SELECTED=\"GR\",\"πρέπει να καθοριστεί \",\"should be filled\")","v":"Το πεδίο <Τύπος ελέγχου που ασκείται από την κάτοικο οντότητα στην \"ΑΣΕ\"> πρέπει να καθοριστεί "},{"$f":" IF(LANG_SELECTED=\"GR\",\"Το πεδίο \",\"The \")& \"<\" & K14 &\"> \" & IF(LANG_SELECTED=\"GR\",\"πρέπει να καθοριστεί \",\"should be filled\")","v":"Το πεδίο <Κύκλος εργασιών της \"ΑΣΕ\"> πρέπει να καθοριστεί "},{"$f":" IF(LANG_SELECTED=\"GR\",\"Το πεδίο \",\"The \")& \"<\" & L14 &\"> \" & IF(LANG_SELECTED=\"GR\",\"πρέπει να καθοριστεί \",\"should be filled\")","v":"Το πεδίο <Αριθμός ατόμων που εργοδοτούνται στην \"ΑΣΕ\": (ανά κεφαλή για τη δωδεκάμηνη περίοδο αναφοράς)\n> πρέπει να καθοριστεί "},{"$f":" IF(LANG_SELECTED=\"GR\",\"Το πεδίο \",\"The \")& \"<\" & M14 &\"> \" & IF(LANG_SELECTED=\"GR\",\"πρέπει να καθοριστεί \",\"should be filled\")","v":"Το πεδίο <Δαπάνες προσωπικού της \"ΑΣΕ\"> πρέπει να καθοριστεί "},{"$f":" IF(LANG_SELECTED=\"GR\",\"Το πεδίο \",\"The \")& \"<\" & N14 &\"> \" & IF(LANG_SELECTED=\"GR\",\"πρέπει να καθοριστεί \",\"should be filled\")","v":"Το πεδίο <Προστιθέμενη αξία σε τιμές κόστους συντελεστών παραγωγής της \"ΑΣΕ\"> πρέπει να καθοριστεί "},"ALL ERRORS"]
[null,null,null,null,{"$f":"IF(LANG_SELECTED=\"GR\",$U12,$U11)","v":"Καταχωρήστε το όνομα"},{"$f":"IF(LANG_SELECTED=\"GR\",$R12,$R11)","v":"Επιλέξτε από την αναπτυσσόμενη λίστα"},{"$f":"IF(LANG_SELECTED=\"GR\",$R12,$R11)","v":"Επιλέξτε από την αναπτυσσόμενη λίστα"},{"$f":"IF(LANG_SELECTED=\"GR\",$R12,$R11)","v":"Επιλέξτε από την αναπτυσσόμενη λίστα"},{"$f":"IF(LANG_SELECTED=\"GR\",$R12,$R11)","v":"Επιλέξτε από την αναπτυσσόμενη λίστα"},null,{"$f":"IF(LANG_SELECTED=\"GR\",$S12,$S11)","v":"Καταχωρήστε το ποσό (€)"},{"$f":"IF(LANG_SELECTED=\"GR\",$T12,$T11)","v":"Καταχωρήστε τον αριθμό"},{"$f":"IF(LANG_SELECTED=\"GR\",$S12,$S11)","v":"Καταχωρήστε το ποσό (€)"},{"$f":"IF(LANG_SELECTED=\"GR\",$S12,$S11)","v":"Καταχωρήστε το ποσό (€)"},{"$f":"IF(LANG_SELECTED=\"GR\",$S12,$S11)","v":"Καταχωρήστε το ποσό (€)"},null,"Columns:",null,"E&F","E","F","E,F","G","H","J","K","L","M","ERRORS"]
[null,null,"DRI_CODE",3300,null,null,null,null,null,null,null,null,null,null,null,null,null,{"$f":"IF(COUNTA(E16:P16)=0,1,0)","v":1},{"$f":"E16&F16","v":""},{"$f":"IF($R16=0,IF(COUNTA(E16)=0,1,0),0)","v":0},{"$f":"IF($R16=0,IF(COUNTA(F16)=0,1,0),0)","v":0},{"$f":"IF(S16<>\"\",COUNTIF(S:S,S16)-1,0)","v":0},{"$f":"IF($R16=0,IF(COUNTA(G16)=0,1,0),0)","v":0},{"$f":"IF($R16=0,IF(COUNTA(I16)=0,1,0),0)","v":0},{"$f":"IF($R16=0,IF(COUNTA(K16)=0,1,0),0)","v":0},{"$f":"IF($R16=0,IF(COUNTA(L16)=0,1,0),0)","v":0},{"$f":"IF($R16=0,IF(COUNTA(M16)=0,1,0),0)","v":0},{"$f":"IF($R16=0,IF(COUNTA(N16)=0,1,0),0)","v":0},{"$f":"IF(R16=0,SUM(T16:AB16),0)","v":0}]
[null,null,"DRI_CODE",3300,null,null,null,null,null,null,null,null,null,null,null,null,null,1,"",0,0,0,0,0,0,0,0,0,{"$f":"IF(R17=0,SUM(T17:AB17),0)","v":0}]
[null,null,"DRI_CODE",3300,null,null,null,null,null,null,null,null,null,null,null,null,null,1,"",0,0,0,0,0,0,0,0,0,0]
[null,null,"DRI_CODE",3300,null,null,null,null,null,null,null,null,null,null,null,null,null,1,"",0,0,0,0,0,0,0,0,0,0]
[null,null,"DRI_CODE",3300,null,null,null,null,null,null,null,null,null,null,null,null,null,1,"",0,0,0,0,0,0,0,0,0,0]
[null,null,"DRI_CODE",3300,null,null,null,null,null,null,null,null,null,null,null,null,null,1,"",0,0,0,0,0,0,0,0,0,0]
[null,null,"DRI_CODE",3300,null,null,null,null,null,null,null,null,null,null,null,null,null,1,"",0,0,0,0,0,0,0,0,0,0]
[null,null,"DRI_CODE",3300,null,null,null,null,null,null,null,null,null,null,null,null,null,1,"",0,0,0,0,0,0,0,0,0,0]
[null,null,"DRI_CODE",3300,null,null,null,null,null,null,null,null,null,null,null,null,null,1,"",0,0,0,0,0,0,0,0,0,0]
[null,null,"DRI_CODE",3300,null,null,null,null,null,null,null,null,null,null,null,null,null,1,"",0,0,0,0,0,0,0,0,0,0]
[null,null,"DRI_CODE",3300,null,null,null,null,null,null,null,null,null,null,null,null,null,1,"",0,0,0,0,0,0,0,0,0,{"$f":"IF(R26=0,SUM(T26:AB26),0)","v":0}]
[null,null,"DRI_CODE",3300,null,null,null,null,null,null,null,null,null,null,null,null,null,1,"",0,0,0,0,0,0,0,0,0,{"$f":"IF(R27=0,SUM(T27:AB27),0)","v":0}]
["}$"]

{"sheet":"ΛΙΣΤΕΣ","index":2,"n_rows":252,"n_cols":15,"rows_kept":252,"cut":false,"hidden":true,"merged":[]}
["X","GR","EN","X","X","GR","EN","X","GR","GR","EN","EN",null,"GR","EN"]
[{"$f":"IF(LANG_SELECTED=\"GR\",\"ΚΩΔΙΚΟΣ\",\"CODE\")","v":"ΚΩΔΙΚΟΣ"},"ΟΝΟΜΑ ΧΩΡΑΣ","COUNTRY NAME",null,{"$f":"IF(LANG_SELECTED=\"GR\",\"ΚΩΔΙΚΟΣ\",\"CODE\")","v":"ΚΩΔΙΚΟΣ"},"ΟΙΚΟΝΟΜΙΚΗ ΔΡΑΣΤΗΡΙΟΤΗΤΑ","ECONOMIC ACTIVITY",null,"ΕΙΔΟΣ ΕΛΕΓΧΟΥ",{"$f":"IF(LANG_SELECTED=\"GR\",\"ΚΩΔΙΚΟΣ\",\"CODE\")","v":"ΚΩΔΙΚΟΣ"},"TYPE OF CONTROL","CODE",null,"Λειτουργική;","Operating?"]
["AO","AO - ΑΓΓΟΛΑ","AO - ANGOLA",null,"A0395","B0905 - Άντληση αργού πετρελαίου και φυσικού αερίου","B0905 - Extraction of crude petroleum, natural gas and mining support service activities",null,"Κατοχή 100% του μετοχικού κεφαλαίου","TP","Equity participation 100%","TP",null,"NAI","YES"]
["AF","AF - ΑΦΓΑΝΙΣΤΑΝ","AF - AFGHANISTAN",null,null,"B0899 - Εξόρυξη μεταλλευμάτων","B0899 - Other mining and quarrying",null,"Συμμετοχή στο μετοχικό κεφάλαιο >=50% and <100%","HP","Equity participation >=50% and <100%","HP",null,"OXI","NO"]
["AX","AX - ΆΛΑΝΤ ΝΗΣΙΑ","AX - ÅLAND ISLANDS",null,"B0905","C1205 - Βιομηχανία ειδών διατροφής","C1205 - Food products, beverages and tobacco products",null,"Οιονεί εταιρεία (π.χ. υποκατάστημα, κοινοπραξία, κ.λ.π.)","QC","Quasi corporation (e.g. branch, joint venture, etc.)","QC"]
["AL","AL - ΑΛΒΑΝΙΑ","AL - ALBANIA",null,"B0899","C1405 - Παραγωγή κλωστοϋφαντουργικών υλών και προϊόντων","C1405 - Textiles and wearing apparel",null,"Έμμεσος έλεγχος","IP","Indirect control","IP"]
["DZ","DZ - ΑΛΓΕΡΙΑ","DZ - ALGERIA",null,null,"C1600 - Προϊόντα ξύλου, εκδοτικές και εκτυπωτικές δραστηριότητες","C1600 - Manufacture of wood and of products of wood and cork, except furniture; manufacture of articles of straw and plaiting materials",null,"Άλλη μορφή ελέγχου (π.χ. αποτελεσματικός έλεγχος των μειονοτήτων, κυβερνητικός έλεγχος) ","OP","Other form of control (effective minority control, government control)","OP"]
["AS","AS - ΑΜΕΡΙΚΑΝΙΚΗ ΣΑΜΟΑ","AS - AMERICAN SAMOA",null,"C1205","C1700 - Χαρτοποιία και κατασκευή χάρτινων προϊόντων","C1700 - Manufacture of paper and paper products"]
["AD","AD - ΑΝΔΟΡΡΑ","AD - ANDORRA",null,"C1405","C1800 - Εκτυπώσεις και αναπαραγωγή προεγγεγραμμένων μέσων","C1800 - Printing and reproduction of recorded media"]
["AI","AI - ΑΝΓΚΟΥΙΛΛΑ","AI - ANGUILLA",null,"C1600","C1900 - Προϊόντα διύλισης πετρελαίου και άλλα είδη επεξεργασίας","C1900 - Coke and refined petroleum products"]
["AQ","AQ - ΑΝΤΑΡΚΤΙΚΗ","AQ - ANTARCTICA",null,"C1700","C2001 - Παραγωγή χημικών ουσιών και προϊόντων","C2001 - Chemicals and chemical products other than pharmaceutical preparations"]
["AG","AG - ΑΝΤΙΓΚΟΥΑ ΚΑΙ ΜΠΑΡΜΠΟΥΝΤΑ","AG - ANTIGUA AND BARBUDA",null,"C1800","C2100 - Παραγωγή βασικών φαρμακευτικών προϊόντων και φαρμακευτικών σκευασμάτων","C2100 - Basic pharmaceutical products and pharmaceutical preparations"]
["AR","AR - ΑΡΓΕΝΤΙΝΗ","AR - ARGENTINA",null,"C1900","C2200 - Προϊόντα από ελαστικό και πλαστικές ύλες","C2200 - Rubber and plastic products"]
["AM","AM - ΑΡΜΕΝΙΑ","AM - ARMENIA",null,"C2001","C2300 - Παραγωγή άλλων μη μεταλλικών ορυκτών προϊόντων","C2300 - Other non-metallic mineral products"]
["AW","AW - ΑΡΟΥΜΠΑ","AW - ARUBA",null,"C2100","C2400 - Παραγωγή βασικών μετάλλων","C2400 - Manufacture of basic metals"]
["AU","AU - ΑΥΣΤΡΑΛΙΑ","AU - AUSTRALIA",null,"C2200","C2500 - Κατασκευή μεταλλικών προϊόντων, με εξαίρεση τα μηχανήματα και τα είδη εξοπλισμού","C2500 - Manufacture of fabricated metal products, except machinery and equipment"]
["AT","AT - ΑΥΣΤΡΙΑ","AT - AUSTRIA",null,"C2300","C2620 - Κατασκευή ηλεκτρονικών υπολογιστών και περιφερειακού εξοπλισμού","C2620 - Manufacture of computers and peripheral equipment"]
["AZ","AZ - ΑΖΕΡΜΠΑΪΤΖΑΝ","AZ - AZERBAIJAN",null,"C2400","C2635 - Κατασκευή εξοπλισμού επικοινωνίας και ηλεκτρονικών ειδών ευρείας κατανάλωσης","C2635 - Manufacture of communication equipment and consumer electronics"]
["BS","BS - ΜΠΑΧΑΜΕΣ","BS - BAHAMAS",null,"C2500","C2655 - Κατασκευή οργάνων και συσκευών μέτρησης, δοκιμών και πλοήγησης· κατασκευή ρολογιών","C2655 - Manufacture of instruments and appliances for measuring, testing and navigation; watches and clocks; manufacture of irradiation, electromedical and electrotherapeutic equipment"]
["BH","BH - ΜΠΑΧΡΕΙΝ","BH - BAHRAIN",null,"C2620","C2700 - Κατασκευή ηλεκτρολογικού εξοπλισμού","C2700 - Manufacture of electrical equipment"]
["BD","BD - ΜΠΑΓΚΛΑΝΤΕΣ","BD - BANGLADESH",null,"C2635","C2800 - Κατασκευή μηχανημάτων και ειδών εξοπλισμού π.δ.κ.α.","C2800 - Machinery and equipment n.e.c."]
["BB","BB - ΜΠΑΡΜΠΑΝΤΟΣ","BB - BARBADOS",null,"C2655","C2900 - Κατασκευή μηχανοκίνητων οχημάτων, ρυμουλκούμενων και ημιρυμουλκούμενων οχημάτων","C2900 - Motor vehicles, trailers and semi trailers"]
["BY","BY - ΛΕΥΚΟΡΩΣΣΙΑ","BY - BELARUS",null,"C2700","C3030 - Κατασκευή αεροσκαφών και διαστημοπλοίων και συναφών μηχανημάτων","C3030 - Air and spacecraft related machinery"]
["BE","BE - ΒΕΛΓΙΟ","BE - BELGIUM",null,"C2800","C3001 - Κατασκευή λοιπού εξοπλισμού μεταφορών, εξαιρουμένου αεροσκαφών και διαστημοπλοίων","C3001 - Other transport equipment, excluding air and spacecraft"]
["BZ","BZ - ΜΠΕΛΙΖ","BZ - BELIZE",null,"C2900","C3105 - Κατασκευή επίπλων, άλλες μεταποιητικές δραστηριότητες, επισκευή και εγκατάσταση μηχανημάτων και εξοπλισμού","C3105 - Furniture, other manufacturing, repair of machinery and equipment"]
["BJ","BJ - ΜΠΕΝΝΙΝ","BJ - BENIN",null,"C3030","D3500 - Παροχή ηλεκτρικού ρεύματος, φυσικού αερίου, ατμού και κλιματισμού","D3500 - ELECTRICITY, GAS, STEAM AND AIR CONDITIONING SUPPLY"]
["BM","BM - ΒΕΡΜΟΥΔΕΣ","BM - BERMUDA",null,"C3001","E3600 - Συλλογή, επεξεργασία και παροχή νερού","E3600 - Water collection, treatment and supply"]
["BT","BT - ΜΠΟΥΤΑΝ","BT - BHUTAN",null,"C3105","E3905 - Επεξεργασία λυμάτων, διαχείριση αποβλήτων και δραστηριότητες εξυγίανσης","E3905 - Sewerage, waste management, remediation activities"]
["BO","BO - ΒΟΛΙΒΙΑ","BO - BOLIVIA, PLURINATIONAL STATE OF",null,"D3500","F4395 - ΚΑΤΑΣΚΕΥΕΣ","F4395 - CONSTRUCTION"]
["BQ","BQ - ΝΗΣΟΙ ΜΠΟΝΑΙΡ, ΑΓΙΟΣ ΕΥΣΤΑΘΙΟΣ ΚΑΙ ΣΑΜΠΑ","BQ - BONAIRE, SAINT EUSTATIUS AND SABA",null,null,"G4500 - Χονδρικό και λιανικό εμπόριο˙ επισκευή μηχανοκίνητων οχημάτων και μοτοσικλετών","G4500 - Wholesale and retail trade and repair of motor vehicles and motorcycles"]
["BA","BA - ΒΟΣΝΙΑ-ΕΡΖΕΓΟΒΙΝΗ","BA - BOSNIA AND HERZEGOVINA",null,"E3600","G4600 - Χονδρικό εμπόριο, εκτός από το εμπόριο μηχανοκίνητων οχημάτων και μοτοσικλετών","G4600 - Wholesale trade, except of motor vehicles and motorcycles"]
["BW","BW - ΜΠΟΤΣΟΥΑΝΑ","BW - BOTSWANA",null,"E3905","G4700 - Λιανικό εμπόριο, εκτός από το εμπόριο μηχανοκίνητων οχημάτων και μοτοσικλετών","G4700 - Retail trade, except of motor vehicles and motorcycles"]
["BV","BV - ΜΠΟΥΒΕ ΝΗΣΙ","BV - BOUVET ISLAND",null,"F4395","H4900 - Χερσαίες μεταφορές και μεταφορές μέσω αγωγών","H4900 - Land transport and transport via pipelines"]
["BR","BR - ΒΡΑΖΙΛΙΑ","BR - BRAZIL",null,null,"H5000 - Πλωτές μεταφορές","H5000 - Water transport"]
["IO","IO - ΒΡΕΤΑΝΙΚΗ ΠΕΡΙΟΧΗ ΤΟΥ ΙΝΔΙΚΟΥ ΩΚΕΑΝΟΥ","IO - BRITISH INDIAN OCEAN TERRITORY",null,"G4500","H5100 - Αεροπορικές μεταφορές","H5100 - Air transport"]
["BN","BN - ΜΠΡΟΥΝΕΙ ΝΤΑΡΟΥΣΑΛΑΜ","BN - BRUNEI DARUSSALAM",null,"G4600","H5200 - Warehousing and support activities for transportation","H5200 - Warehousing and support activities for transportation"]
["BG","BG - ΒΟΥΛΓΑΡΙΑ","BG - BULGARIA",null,"G4700","H5300 - Ταχυδρομικές και ταχυμεταφορικές δραστηριότητες","H5300 - Postal and courier activities"]
["BF","BF - ΜΠΟΥΡΚΙΝΑ ΦΑΣΟ","BF - BURKINA FASO",null,null,"I5695 - ΔΡΑΣΤΗΡΙΟΤΗΤΕΣ ΥΠΗΡΕΣΙΩΝ ΠΑΡΟΧΗΣ ΚΑΤΑΛΥΜΑΤΟΣ ΚΑΙ ΥΠΗΡΕΣΙΩΝ ΕΣΤΙΑΣΗΣ","I5695 - ACCOMMODATION AND FOOD SERVICE ACTIVITIES"]
["BI","BI - ΜΠΟΥΡΟΥΝΤΙ","BI - BURUNDI",null,"H4900","J5800 - Εκδοτικές δραστηριότητες","J5800 - Publishing activities"]
["KH","KH - ΚΑΜΠΟΤΖΗ","KH - CAMBODIA",null,"H5000","J5900 - Παραγωγή κινηματογραφικών ταινιών, βίντεο και τηλεοπτικών προγραμμάτων, ηχογραφήσεις και μουσικές εκδόσεις","J5900 - Motion picture, video and television programme production, sound recording and music publishing activities"]
["CM","CM - ΚΑΜΕΡΟΥΝ","CM - CAMEROON",null,"H5100","J6000 - Δραστηριότητες προγραμματισμού και ραδιοτηλεοπτικών εκπομπών","J6000 - Programming and broadcasting activities"]
["CA","CA - ΚΑΝΑΔΑΣ","CA - CANADA",null,"H5200","J6100 - Τηλεπικοινωνίες","J6100 - Telecommunications"]
["CV","CV - ΠΡΑΣΙΝΟ ΑΚΡΩΤΗΡΙΟ","CV - CAPE VERDE",null,"H5300","J6200 - Δραστηριότητες προγραμματισμού ηλεκτρονικών υπολογιστών, παροχής συμβουλών και συναφείς δραστηριότητες","J6200 - Computer programming, consultancy and related activities "]
["KY","KY - ΚΑΫΜΑΝ ΝΗΣΙΑ","KY - CAYMAN ISLANDS",null,"I5695","J6300 - Δραστηριότητες υπηρεσιών πληροφορίας","J6300 - Information service activities"]
["CF","CF - ΚΕΝΤΡΙΚΗ ΑΦΡΙΚΗ","CF - CENTRAL AFRICAN REPUBLIC",null,null,"K6419 - Άλλοι οργανισμοί νομισματικής διαμεσολάβησης","K6419 - Monetary intermediation "]
["TD","TD - ΤΣΑΝΤ","TD - CHAD",null,"J5800","K6420 - Δραστηριότητες εταιρειών χαρτοφυλακίου","K6420 - Activities of holding companies"]
["CL","CL - ΧΙΛΗ","CL - CHILE",null,"J5900","K6499 - Άλλες δραστηριότητες χρηματοπιστωτικών υπηρεσιών, με εξαίρεση τις ασφάλειες και τα συνταξιοδοτικά ταμεία π.δ.κ.α","K6499 - Other financial service activities, except insurance and pension funding n.i.e."]
["CN","CN - ΚΙΝΑ","CN - CHINA",null,"J6000","K6500 - Ασφαλιστικά, αντασφαλιστικά και συνταξιοδοτικά ταμεία, εκτός από την υποχρεωτική κοινωνική ασφάλιση","K6500 - Insurance, reinsurance and pension funding, except compulsory social security"]
["CX","CX - ΧΡΙΣΤΟΥΓΕΝΝΩΝ ΝΗΣΙΑ","CX - CHRISTMAS ISLAND",null,"J6100","K6600 - Δραστηριότητες συναφείς προς τις χρηματοπιστωτικές υπηρεσίες και τις ασφαλιστικές δραστηριότητες","K6600 - Activities auxiliary to financial services and insurance activities"]
["CC","CC - ΚΗΛΛΙΝΓΚ ΝΗΣΙΑ","CC - COCOS (KEELING) ISLANDS",null,"J6200","L6800 - Διαχείριση ακίνητης περιουσίας","L6800 - REAL ESTATE ACTIVITIES"]
["CO","CO - ΚΟΛΟΜΒΙΑ","CO - COLOMBIA",null,"J6300","M6910 - Νομικές δραστηριότητες","M6910 - Legal activities"]
["KM","KM - ΚΟΜΟΡΕΣ","KM - COMOROS",null,null,"M6920 - Δραστηριότητες λογιστικής, τήρησης βιβλίων και λογιστικού ελέγχου· παροχή φορολογικών συμβουλών","M6920 - Accounting, bookkeeping and auditing activities; tax consultancy"]
["CG","CG - ΚΟΝΓΚΟ","CG - CONGO",null,"K6419","M7010 - Δραστηριότητες κεντρικών γραφείων","M7010 - Activities of head offices"]
[" CD"," CD - ΚΟΝΓΚΟ (ΔΗΜΟΚΡΑΤΙΑ ΤΟΥ ΚΟΝΓΚΟ (ΠΡΩΗΝ ΖΑΪΡ))"," CD - CONGO, THE DEMOCRATIC REPUBLIC OF THE",null,"K6420","M7020 - Δραστηριότητες παροχής συμβουλών διαχείρισης","M7020 - Management consultancy activities"]
["CK","CK - ΚΟΥΚ ΝΗΣΙΑ","CK - COOK ISLANDS",null,"K6499","M7100 - Αρχιτεκτονικές δραστηριότητες και δραστηριότητες μηχανικών· τεχνικές δοκιμές και αναλύσεις","M7100 - Architecture and engineering activities; technical testing and analysis"]
["CR","CR - ΚΟΣΤΑ ΡΙΚΑ","CR - COSTA RICA",null,"K6500","M7200 - Επιστημονική έρευνα και ανάπτυξη","M7200 - Scientific Research and development"]
["CI","CI - ΑΚΤΗ ΕΛΕΦΑΝΤΟΣΤΟΥ","CI - CÔTE D'IVOIRE",null,"K6600","M7310 - Διαφήμιση","M7310 - Advertising"]
["HR","HR - ΚΡΟΑΤΙΑ","HR - CROATIA",null,"L6800","M7320 - Έρευνα αγοράς και δημοσκοπήσεις","M7320 - Market research and public opinion polling"]
["CU","CU - ΚΟΥΒΑ","CU - CUBA",null,null,"M7505 - Άλλες επαγγελματικές, επιστημονικές και τεχνικές δραστηριότητες, κτηνιατρικές δραστηριότητες","M7505 - Other professional, scientific and technical activities, veterinary activities"]
["CW","CW - ΚΟΥΡΑΣΑΟ","CW - CURAÇAO",null,"M6910","N7700 - Δραστηριότητες ενοικίασης και εκμίσθωσης","N7700 - Rental and leasing activities"]
["CY","CY - ΚΥΠΡΟΣ","CY - CYPRUS",null,"M6920","N7900 - Δραστηριότητες ταξιδιωτικών πρακτορείων, γραφείων οργανωμένων ταξιδιών και υπηρεσιών κρατήσεων και συναφείς δραστηριότητες","N7900 - Travel agency, tour operator reservation service and related activities"]
["CZ","CZ - ΤΣΕΧΙΑ","CZ - CZECH REPUBLIC",null,"M7010","N8205 - Λοιπές διοικητικές και υποστηρικτικές δραστηριότητες (εξαιρουμένων ταξιδιωτικών πρακτορείων, γραφείων οργανωμένων ταξιδιών και συναφείς δραστηριότητες)","N8205 - Other administrative and support service activities (excluding travel agency, tour operator reservation service and related activities)"]
["DK","DK - ΔΑΝΙΑ","DK - DENMARK",null,"M7020","P8500 - ΕΚΠΑΙΔΕΥΣΗ","P8500 - EDUCATION"]
["DJ","DJ - ΤΖΙΜΠΟΥΤΙ","DJ - DJIBOUTI",null,"M7100","Q8895 - ΔΡΑΣΤΗΡΙΟΤΗΤΕΣ ΣΧΕΤΙΚΕΣ ΜΕ ΤΗΝ ΑΝΘΡΩΠΙΝΗ ΥΓΕΙΑ ΚΑΙ ΤΗΝ ΚΟΙΝΩΝΙΚΗ ΜΕΡΙΜΝΑ","Q8895 - HUMAN HEALTH AND SOCIAL WORK ACTIVITIES"]
["DM","DM - ΝΤΟΜΙΝΙΚΑ","DM - DOMINICA",null,"M7200","R9000 - Δημιουργικές δραστηριότητες, τέχνες και διασκέδαση","R9000 - Creative, arts and entertainment activities"]
["DO","DO - ΆΓΙΟΣ ΔΟΜΙΝΙΚΟΣ","DO - DOMINICAN REPUBLIC",null,"M7310","R9100 - Δραστηριότητες βιβλιοθηκών, αρχειοφυλακείων, μουσείων και λοιπές πολιτιστικές δραστηριότητες","R9100 - Libraries, archives, museums and other cultural activities"]
["EC","EC - ΙΣΗΜΕΡΙΝΟΣ","EC - ECUADOR",null,"M7320","R9305 - Αθλητικές δραστηριότητες, δραστηριότητες διασκέδασης και ψυχαγωγίας, τυχερά παιχνίδια και στοιχήματα","R9305 - Sporting and other recreational activities; gambling and betting activities"]
["EG","EG - ΑΙΓΥΠΤΟΣ","EG - EGYPT",null,"M7505","S9400 - Δραστηριότητες οργανώσεων","S9400 - Activities of membership organizations"]
["SV","SV - ΕΛ ΣΑΛΒΑΔΟΡ","SV - EL SALVADOR",null,null,"S9605 - Επισκευή ηλεκτρονικών υπολογιστών και ειδών ατομικής η οικιακής χρήσης, άλλες δραστηριότητες παροχής προσωπικών υπηρεσιών","S9605 - Repair of computers and personal and household goods, other personal service activities"]
["GQ","GQ - ΙΣΗΜΕΡΙΝΗ ΓΟΥΙΝΕΑ","GQ - EQUATORIAL GUINEA",null,"N7700","S9695 - Άλλες δραστηριότητες παροχής υπηρεσιών","S9695 - Other service activities"]
["ER","ER - ΕΡΥΘΡΑΙΑ","ER - ERITREA",null,"N7900"]
["EE","EE - ΕΣΘΟΝΙΑ","EE - ESTONIA",null,"N8205"]
["ET","ET - ΑΙΘΙΟΠΟΙΑ","ET - ETHIOPIA",null,"P8500"]
["FK","FK - ΦΩΚΛΑΝΤ ΝΗΣΙΑ","FK - FALKLAND ISLANDS (MALVINAS)",null,"Q8895"]
["FO","FO - ΦΕΡΟΕΣ ΝΗΣΙΑ","FO - FAROE ISLANDS"]
["FJ","FJ - ΦΙΤΖΙ","FJ - FIJI",null,"R9000"]
["FI","FI - ΦΙΝΛΑΝΔΙΑ","FI - FINLAND",null,"R9100"]
["FR","FR - ΓΑΛΛΙΑ","FR - FRANCE",null,"R9305"]
["GF","GF - ΓΑΛΛΙΚΗ ΓΟΥΙΑΝΑ","GF - FRENCH GUIANA"]
["PF","PF - ΓΑΛΛΙΚΗ ΠΟΛΥΝΗΣΙΑ","PF - FRENCH POLYNESIA",null,"S9400"]
["TF","TF - ΓΑΛΛΙΚΕΣ ΝΟΤΙΕΣ ΠΕΡΙΟΧΕΣ","TF - FRENCH SOUTHERN TERRITORIES",null,"S9605"]
["GA","GA - ΓΚΑΜΠΟΝ","GA - GABON",null,"S9695"]
["GM","GM - ΓΚΑΜΒΙΑ","GM - GAMBIA"]
["GE","GE - ΓΕΩΡΓΙΑ","GE - GEORGIA"]
["DE","DE - ΓΕΡΜΑΝΙΑ","DE - GERMANY"]
["GH","GH - ΓΚΑΝΑ","GH - GHANA"]
["GI","GI - ΓΙΒΡΑΛΤΑΡ","GI - GIBRALTAR"]
["GR","GR - ΕΛΛΑΔΑ","GR - GREECE"]
["GL","GL - ΓΡΟΙΛΑΝΔΙΑ","GL - GREENLAND"]
["GD","GD - ΓΡΕΝΑΔΑ","GD - GRENADA"]
["GP","GP - ΓΟΥΑΔΕΛΟΥΠΗ","GP - GUADELOUPE"]
["GU","GU - ΓΚΟΥΑΜ","GU - GUAM"]
["GT","GT - ΓΟΥΑΤΕΜΑΛΑ","GT - GUATEMALA"]
["GG","GG - ΓΚΕΡΣΝΕΙ","GG - GUERNSEY"]
["GN","GN - ΓΟΥΙΝΕΑ","GN - GUINEA"]
["GW","GW - ΓΟΥΙΝΕΑ ΜΠΙΣΣΑΟΥ","GW - GUINEA-BISSAU"]
["GY","GY - ΓΟΥΙΑΝΑ","GY - GUYANA"]
["HT","HT - ΑΪΤΗ","HT - HAITI"]
["HM","HM - ΧΕΡΝΤ ΝΗΣΙ ΚΑΙ ΜΑΚ ΝΤΟΝΑΛΝΤ ΝΗΣΙ","HM - HEARD ISLAND AND MCDONALD ISLANDS"]
["VA","VA - ΒΑΤΙΚΑΝΟ","VA - HOLY SEE (VATICAN CITY STATE)"]
["HN","HN - ΟΝΔΟΥΡΑ","HN - HONDURAS"]
["HK","HK - ΧΟΝΓΚ ΚΟΝΓΚ","HK - HONG KONG"]
["HU","HU - ΟΥΓΓΑΡΙΑ","HU - HUNGARY"]
["IS","IS - ΙΣΛΑΝΔΙΑ","IS - ICELAND"]
["IN","IN - ΙΝΔΙΑ","IN - INDIA"]
["ID","ID - ΙΝΔΟΝΗΣΙΑ","ID - INDONESIA"]
["IR","IR - ΙΡΑΝ","IR - IRAN, ISLAMIC REPUBLIC OF"]
["IQ","IQ - ΙΡΑΚ","IQ - IRAQ"]
["IE","IE - ΙΡΛΑΝΔΙΑ","IE - IRELAND"]
["IM","IM - ΝΗΣΟΣ ΤΟΥ ΜΑΝ","IM - ISLE OF MAN"]
["IL","IL - ΙΣΡΑΗΛ","IL - ISRAEL"]
["IT","IT - ΙΤΑΛΙΑ","IT - ITALY"]
["JM","JM - ΤΖΑΜΑΙΚΑ","JM - JAMAICA"]
["JP","JP - ΙΑΠΩΝΙΑ","JP - JAPAN"]
["JE","JE - ΤΖΕΡΣΕΙ","JE - JERSEY"]
["JO","JO - ΙΟΡΔΑΝΙΑ","JO - JORDAN"]
["KZ","KZ - ΚΑΖΑΚΣΤΑΝ","KZ - KAZAKHSTAN"]
["KE","KE - ΚΕΝΥΑ","KE - KENYA"]
["KI","KI - ΚΙΡΙΜΠΑΤΙ","KI - KIRIBATI"]
["KP","KP - ΒΟΡΕΙΑ ΚΟΡΕΑ","KP - KOREA, DEMOCRATIC PEOPLE'S REPUBLIC OF"]
["KR","KR - ΝΟΤΙΑ ΚΟΡΕΑ","KR - KOREA, REPUBLIC OF"]
["XK","XK - ΚΟΣΟΒΟ","XK - KOSOVO"]
["KW","KW - ΚΟΥΒΕΙΤ","KW - KUWAIT"]
["KG","KG - ΚΥΡΓΙΣΤΑΝ","KG - KYRGYZSTAN"]
["LA","LA - ΛΑΟΣ","LA - LAO PEOPLE'S DEMOCRATIC REPUBLIC"]
["LV","LV - ΛΕΤΤΟΝΙΑ","LV - LATVIA"]
["LB","LB - ΛΙΒΑΝΟΣ","LB - LEBANON"]
["LS","LS - ΛΕΣΟΘΟ","LS - LESOTHO"]
["LR","LR - ΛΙΒΕΡΙΑ","LR - LIBERIA"]
["LY","LY - ΛΙΒΥΗ","LY - LIBYA"]
["LI","LI - ΛΙΧΤΕΝΣΤΑΙΝ","LI - LIECHTENSTEIN"]
["LT","LT - ΛΙΘΟΥΑΝΙΑ","LT - LITHUANIA"]
["LU","LU - ΛΟΥΞΕΜΒΟΥΡΓΟ","LU - LUXEMBOURG"]
["MO","MO - ΜΑΚΑΟ","MO - MACAO"]
["MK","MK - ΜΑΚΕΔΟΝΙΑ (ΠΡΩΗΝ ΓΙΟΥΓΚΟΣΛΑΒΙΚΗ ΔΗΜΟΚΡΑΤΙΑ ΤΗΣ ΜΑΚΕΔΟΝΙΑΣ (FYROM))","MK - MACEDONIA, THE FORMER YUGOSLAV REPUBLIC OF"]
["MG","MG - ΜΑΔΑΓΑΣΚΑΡΗ","MG - MADAGASCAR"]
["MW","MW - ΜΑΛΑΟΥΙ","MW - MALAWI"]
["MY","MY - ΜΑΛΑΙΣΙΑ","MY - MALAYSIA"]
["MV","MV - ΜΑΛΔΙΒΕΣ","MV - MALDIVES"]
["ML","ML - ΜΑΛΙ","ML - MALI"]
["MT","MT - ΜΑΛΤΑ","MT - MALTA"]
["MH","MH - ΜΑΡΣΑΛΛ ΝΗΣΙΑ","MH - MARSHALL ISLANDS"]
["MQ","MQ - ΜΑΡΤΙΝΙΚΑ","MQ - MARTINIQUE"]
["MR","MR - ΜΑΥΡΗΤΑΝΙΑ","MR - MAURITANIA"]
["MU","MU - ΜΑΥΡΙΚΙΟΣ","MU - MAURITIUS"]
["YT","YT - ΜΑΓΙΟΤ","YT - MAYOTTE"]
["MX","MX - ΜΕΞΙΚΟ","MX - MEXICO"]
["FM","FM - ΜΙΚΡΟΝΗΣΙΑ","FM - MICRONESIA, FEDERATED STATES OF"]
["MD","MD - ΜΟΛΔΑΒΙΑ","MD - MOLDOVA, REPUBLIC OF"]
["MC","MC - ΜΟΝΑΚΟ","MC - MONACO"]
["MN","MN - ΜΟΓΓΟΛΙΑ","MN - MONGOLIA"]
["ME","ME - ΜΑΥΡΟΒΟΥΝΙΟ","ME - MONTENEGRO"]
["MS","MS - ΜΟΝΤΣΕΡΡΑΤ","MS - MONTSERRAT"]
["MA","MA - ΜΑΡΟΚΟ","MA - MOROCCO"]
["MZ","MZ - ΜΟΖΑΜΒΙΚΗ","MZ - MOZAMBIQUE"]
["MM","MM - ΜΥΑΝΜΑΡ","MM - MYANMAR"]
["NA","NA - ΝΑΜΙΜΠΙΑ","NA - NAMIBIA"]
["NR","NR - ΝΑΟΥΡΟΥ","NR - NAURU"]
["NP","NP - ΝΕΠΑΛ","NP - NEPAL"]
["NL","NL - ΟΛΛΑΝΔΙΑ","NL - NETHERLANDS"]
["NC","NC - ΝΕΑ ΚΑΛΗΔΟΝΙΑ","NC - NEW CALEDONIA"]
["NZ","NZ - ΝΕΑ ΖΗΛΑΝΔΙΑ","NZ - NEW ZEALAND"]
["NI","NI - ΝΙΚΑΡΑΓΟΥΑ","NI - NICARAGUA"]
["NE","NE - ΝΙΓΗΡ","NE - NIGER"]
["NG","NG - ΝΙΓΗΡΙΑ","NG - NIGERIA"]
["NU","NU - ΝΙΟΥΕ","NU - NIUE"]
["NF","NF - ΝΟΡΦΟΛΚ ΝΗΣΙΑ","NF - NORFOLK ISLAND"]
["MP","MP - ΒΟΡΕΙΕΣ ΜΑΡΙΑΝΝΕΣ ΝΗΣΙΑ","MP - NORTHERN MARIANA ISLANDS"]
["NO","NO - ΝΟΡΒΗΓΙΑ","NO - NORWAY"]
["OM","OM - ΟΜΑΝ","OM - OMAN"]
["PK","PK - ΠΑΚΙΣΤΑΝ","PK - PAKISTAN"]
["PW","PW - ΠΑΛΑΟΥ","PW - PALAU"]
["PS","PS - ΠΑΛΑΙΣΤΙΝΙΑΚΟ ΚΑΤΕΧΟΜΕΝΟ ΈΔΑΦΟΣ","PS - PALESTINE, STATE OF"]
["PA","PA - ΠΑΝΑΜΑΣ","PA - PANAMA"]
["PG","PG - ΠΑΠΟΥΑ ΝΕΑ ΓΟΥΙΝΕΑ","PG - PAPUA NEW GUINEA"]
["PY","PY - ΠΑΡΑΓΟΥΑΗ","PY - PARAGUAY"]
["PE","PE - ΠΕΡΟΥ","PE - PERU"]
["PH","PH - ΦΙΛΙΠΠΙΝΕΣ","PH - PHILIPPINES"]
["PN","PN - ΠΙΤΚΑΙΡΝ","PN - PITCAIRN"]
["PL","PL - ΠΟΛΩΝΙΑ","PL - POLAND"]
["PT","PT - ΠΟΡΤΟΓΑΛΙΑ","PT - PORTUGAL"]
["PR","PR - ΠΟΥΕΡΤΟ ΡΙΚΟ","PR - PUERTO RICO"]
["QA","QA - ΚΑΤΑΡ","QA - QATAR"]
["RE","RE - ΕΠΑΝΕΝΩΣΗΣ ΝΗΣΙΑ","RE - RÉUNION"]
["RO","RO - ΡΟΥΜΑΝΙΑ","RO - ROMANIA"]
["RU","RU - ΡΩΣΣΙΑ","RU - RUSSIAN FEDERATION"]
["RW","RW - ΡΟΥΑΝΤΑ","RW - RWANDA"]
["BL","BL - ΑΓΙΟΣ ΒΑΡΘΟΛΟΜΕΟΣ","BL - SAINT BARTHÉLEMY"]
["SH","SH - ΑΓΙΑ ΕΛΕΝΗ","SH - SAINT HELENA, ASCENSION AND TRISTAN DA CUNHA"]
["KN","KN - ΆΓΙΟΣ ΧΡΙΣΤΟΦΟΡΟΣ ΚΑΙ ΝΕΒΙΣ","KN - SAINT KITTS AND NEVIS"]
["LC","LC - ΑΓΙΑ ΛΟΥΚΙΑ","LC - SAINT LUCIA"]
["MF","MF - ΑΓΙΟΣ ΜΑΡΤΙΝΟΣ","MF - SAINT MARTIN (FRENCH PART)"]
["PM","PM - ΆΓΙΟΣ ΠΕΤΡΟΣ ΚΑΙ ΜΙΚΕΛΟΝ","PM - SAINT PIERRE AND MIQUELON"]
["VC","VC - ΆΓΙΟΣ ΒΙΚΕΝΤΙΟΣ ΚΑΙ ΓΡΕΝΑΔΙΝΕΣ","VC - SAINT VINCENT AND THE GRENADINES"]
["WS","WS - ΣΑΜΟΕΣ","WS - SAMOA"]
["SM","SM - ΆΓΙΟΣ ΜΑΡΙΝΟΣ","SM - SAN MARINO"]
["ST","ST - ΆΓΙΟΣ ΘΩΜΑΣ ΚΑΙ ΠΡΙΓΚΗΠΑΣ","ST - SAO TOME AND PRINCIPE"]
["SA","SA - ΣΑΟΥΔΙΚΗ ΑΡΑΒΙΑ","SA - SAUDI ARABIA"]
["SN","SN - ΣΕΝΕΓΑΛΗ","SN - SENEGAL"]
["RS","RS - ΣΕΡΒΙΑ","RS - SERBIA"]
["SC","SC - ΣΕΫΧΕΛΛΕΣ","SC - SEYCHELLES"]
["SL","SL - ΣΙΕΡΡΑ ΛΕΟΝΕ","SL - SIERRA LEONE"]
["SG","SG - ΣΙΓΚΑΠΟΥΡΗ","SG - SINGAPORE"]
["SX","SX - ΆΓΙΟΣ ΜΑΡΤΙΝΟΣ (ΟΛΛΑΝΔΙΑ) ","SX - SINT MAARTEN (DUTCH PART)"]
["SK","SK - ΣΛΟΒΑΚΙΑ","SK - SLOVAKIA"]
["SI","SI - ΣΛΟΒΕΝΙΑ","SI - SLOVENIA"]
["SB","SB - ΣΟΛΩΜΩΝΤΑ ΝΗΣΙΑ","SB - SOLOMON ISLANDS"]
["SO","SO - ΣΟΜΑΛΙΑ","SO - SOMALIA"]
["ZA","ZA - ΝΟΤΙΑ ΑΦΡΙΚΗ","ZA - SOUTH AFRICA"]
["GS","GS - ΝΟΤΙΑ ΓΕΩΡΓΙΑ ΚΑΙ ΝΟΤΙΑ ΣΑΝΤΟΥΙΤΣ ΝΗΣΙΑ","GS - SOUTH GEORGIA AND THE SOUTH SANDWICH ISLANDS"]
["SS","SS - ΒΟΡΕΙΟ ΣΟΥΔΑΝ","SS - SOUTH SUDAN"]
["ES","ES - ΙΣΠΑΝΙΑ","ES - SPAIN"]
["LK","LK - ΣΡΙ ΛΑΝΚΑ","LK - SRI LANKA"]
["SD","SD - ΣΟΥΔΑΝ","SD - SUDAN"]
["SR","SR - ΣΟΥΡΙΝΑΜ","SR - SURINAME"]
["SJ","SJ - ΣΦΑΛΜΠΑΡΝΤ ΚΑΙ ΓΙΑΝ ΜΑΓΙΕΝ","SJ - SVALBARD AND JAN MAYEN"]
["SZ","SZ - ΣΟΥΑΖΙΛΑΝΔΗ","SZ - SWAZILAND"]
["SE","SE - ΣΟΥΗΔΙΑ","SE - SWEDEN"]
["CH","CH - ΕΛΒΕΤΙΑ","CH - SWITZERLAND"]
["SY","SY - ΣΥΡΙΑ","SY - SYRIAN ARAB REPUBLIC"]
["TW","TW - ΤΑΪΒΑΝ, ΕΠΑΡΧΙΑ ΤΗΣ ΚΙΝΑΣ","TW - TAIWAN, PROVINCE OF CHINA"]
["TJ","TJ - ΤΑΤΖΙΚΙΣΤΑΝ","TJ - TAJIKISTAN"]
["TZ","TZ - ΤΑΝΖΑΝΙΑ","TZ - TANZANIA, UNITED REPUBLIC OF"]
["TH","TH - ΤΑΪΛΑΝΔΗ","TH - THAILAND"]
["TL","TL - ΤΙΜΟΡ - ΛΕΣΤΕ","TL - TIMOR-LESTE"]
["TG","TG - ΤΟΓΚΟ","TG - TOGO"]
["TK","TK - ΤΟΚΕΛΑΟΥ","TK - TOKELAU"]
["TO","TO - ΤΟΝΓΚΑ","TO - TONGA"]
["TT","TT - ΤΡΙΝΙΤΑΔ ΚΑΙ ΤΟΜΠΑΓΚΟ","TT - TRINIDAD AND TOBAGO"]
["TN","TN - ΤΥΝΗΣΙΑ","TN - TUNISIA"]
["TR","TR - ΤΟΥΡΚΙΑ","TR - TURKEY"]
["TM","TM - ΤΟΥΡΚΜΕΝΙΣΤΑΝ","TM - TURKMENISTAN"]
["TC","TC - ΤΟΥΡΚΩΝ ΚΑΙ ΚΑΙΚΟΣ ΝΗΣΙΑ","TC - TURKS AND CAICOS ISLANDS"]
["TV","TV - ΤΟΥΒΑΛΟΥ","TV - TUVALU"]
["UG","UG - ΟΥΓΚΑΝΤΑ","UG - UGANDA"]
["UA","UA - ΟΥΚΡΑΝΙΑ","UA - UKRAINE"]
["AE","AE - ΗΝΩΜΕΝΑ ΑΡΑΒΙΚΑ ΕΜΙΡΑΤΑ","AE - UNITED ARAB EMIRATES"]
["GB","GB - ΗΝΩΜΕΝΟ ΒΑΣΙΛΕΙΟ","GB - UNITED KINGDOM"]
["US","US - ΗΝΩΜΕΝΕΣ ΠΟΛΙΤΕΙΕΣ","US - UNITED STATES"]
["UM","UM - ΗΝΩΜΕΝΩΝ ΠΟΛΙΤΕΙΩΝ ΕΛΑΣΣΟΝΑ ΕΞΩΤΕΡΙΚΑ ΝΗΣΙΑ","UM - UNITED STATES MINOR OUTLYING ISLANDS"]
["UY","UY - ΟΥΡΟΥΓΟΥΑΗ","UY - URUGUAY"]
["UZ","UZ - ΟΥΖΜΠΕΚΙΣΤΑΝ","UZ - UZBEKISTAN"]
["VU","VU - ΒΑΝΟΥΑΤΟΥ","VU - VANUATU"]
["VE","VE - ΒΕΝΕΖΟΥΕΛΑ","VE - VENEZUELA, BOLIVARIAN REPUBLIC OF"]
["VN","VN - ΒΙΕΤΝΑΜ","VN - VIET NAM"]
["VG","VG - ΠΑΡΘΕΝΑ ΝΗΣΙΑ (ΒΡΕΤΑΝΙΚΑ)","VG - VIRGIN ISLANDS, BRITISH"]
["VI","VI - ΠΑΡΘΕΝΑ ΝΗΣΙΑ (Η.Π.Α)","VI - VIRGIN ISLANDS, U.S."]
["WF","WF - ΓΟΥΩΛΛΙΣ ΚΑΙ ΦΟΥΤΟΥΝΑ ΝΗΣΙΑ","WF - WALLIS AND FUTUNA"]
["EH","EH - ΔΥΤΙΚΗ ΣΑΧΑΡΑ","EH - WESTERN SAHARA"]
["YE","YE - ΥΕΜΕΝΗ","YE - YEMEN"]
["ZM","ZM - ΖΑΜΠΙΑ","ZM - ZAMBIA"]
["ZW","ZW - ΖΙΜΠΑΜΠΟΥΕ","ZW - ZIMBABWE"]

{"sheet":"Reporting Details","index":3,"n_rows":77,"n_cols":1,"rows_kept":77,"cut":false,"hidden":true,"merged":[[66,0,66,8],[58,0,58,8],[59,0,59,8],[60,0,60,8],[61,0,61,8],[62,0,62,8],[65,0,65,8],[57,0,57,8],[41,0,41,8],[42,0,42,8],[44,0,44,8],[45,0,45,8],[48,0,48,8],[49,0,49,8],[50,0,50,8],[51,0,51,8],[53,0,53,8],[54,0,54,8],[56,0,56,8],[39,0,39,8],[23,0,23,8],[24,0,24,8],[26,0,26,8],[27,0,27,8],[29,0,29,8],[30,0,30,8],[32,0,32,8],[33,0,33,8],[35,0,35,8],[36,0,36,8],[38,0,38,8],[21,0,21,8],[5,0,5,8],[6,0,6,8],[8,0,8,8],[9,0,9,8],[11,0,11,8],[12,0,12,8],[14,0,14,8],[15,0,15,8],[17,0,17,8],[18,0,18,8],[20,0,20,8]]}
[]
[]
[]
[]
[]
["CENTRAL BANK OF CYPRUS"]
["EUROSYSTEM"]
[]
["\"OFATS\" SURVEY"]
["Outward Foreign Affiliates Statistics"]
[]
["Purpose of the survey"]
["The statistical data and information collected through the Outward Foreign Affiliates Statistics (OFATS) survey are used for an accurate assessment of (i) how foreign businesses, ultimately controlled by a Cyprus' entity, are expanding internationally and (ii) the  influence of this expansion on the economy of Cyprus and the European Union, in accordance with the methodology and degree of analysis defined by the European Commission (Eurostat)."]
[]
["To whom is the survey addressed"]
["The OFATS survey, is addressed to legal entities, residents of Cyprus, which have control over foreign affiliate enterprises and whose ultimate controlling institutional unit is a resident of Cyprus.  The ultimate controlling institutional unit shall mean the institutional unit, proceeding up a foreign affiliate's chain of control, which is not controlled by another institutional unit."]
[]
["Legal basis"]
["The collection and production of OFATS is governed by the provisions of the Regulation (EC) No 716/2007 of the European Parliament and of the Council of 20 June 2007 on Community Statistics on the Structure and Activity of Foreign Affiliates and the Central Bank of Cyprus Laws of 2002 to 2017 (the “Law”).  "]
[]
["Confidentiality"]
["Any data and information provided to the Central Bank of Cyprus are treated on a strictly confidential basis, in accordance with the relevant provisions of national and Community Law."]
[]
["Frequency of reporting and deadline for submission"]
["The \"OFATS\" survey is carried out on an annual basis. The relevant annual reports must be submitted to the Central Bank of Cyprus within 17 months after the end of the year for which reference is made."]
[]
["Definition of \"Resident of Cyprus\""]
["The data submitted must be consistent with the definition of \"resident of Cyprus\" for statistical purposes which was implemented on 1st July 2008. The relevant directive  can be found on the internet (link: http://www.centralbank.gov.cy/media/pdf/STDRE_RESIDENTDEFINITIONV12008.pdf)."]
[]
["Reporting currency"]
["All reports should be made in euro (rounded to the nearest unit)."]
[]
["Sign convention"]
["With the exception of data reported for the variable \"Value Added at factor cost\" in Form 2, which can either be with a plus or minus sign, all data should be reported without a sign."]
[]
["Valuation of data"]
["Data required should be valued at the price at which they are entered in the books of the Foreign Affiliate Enterprise (FAE) and should be reported in full irrespective of the percentage ownership of the resident entity in the FAE."]
[]
["Language selection"]
["The survey is available in both Greek and English. The selection of the preferred language can be found on the top right of Form 1. "]
[]
["Estimates"]
["If actual figures are not available for any item, provisional figures must be submitted on the basis of prudent estimates in order to ensure that submission takes place within the set time limit. "]
[]
["Economic activity"]
["In case, a FAE has more than one economic activity, only the main economic activity must be selected (i.e. only one economic activity must be allocated to each FAE)."]
[]
["Technical information and data validations"]
["The excel template contains several built-in controls and validations (in the form of restricted lists of values, predefined excel validations and custom built Macros) to assist the reporting agents in the compilation and submission of valid and consistent data.  The following should be noted for the successful completion and submission of the excel template:"]
["* The various Macros which are built in the excel template are used for validation purposes and for this reason, they should always be enabled."]
["* When the space provided on the template is insufficient, the reporting entity should insert extra columns by pressing the button \"Insert Line\"."]
["* Following completion of the survey and in order for the system to perform the internal validations which are built in the excel template, the reporting entity needs to “Validate submission” by pressing the appropriate button in Form 1. Any error messages (if any) would appear in the worksheet “Validation errors” and will help you to detect and resolve the error. All errors must be resolved before the submission of the template to the Central Bank of Cyprus."]
[]
["Data submission method"]
["The Survey \"OFATS\"  should be submitted to the Central Bank of Cyprus  via e-mail at bop@centralbank.cy with the indication   «Survey \"OFATS\"». "]
[]
["Correspondence Details"]
["All correspondence regarding the \"OFATS\" survey should be addressed to:"]
["External & General Economic Statistics Section"]
["Statistics Department"]
["CENTRAL BANK OF CYPRUS"]
["P.O.Box 25529"]
["1395 Nicosia"]
[]
[]
["Contacts for assistance:"]
["For more information and/or clarifications, please contact the following persons:"]
[]
["Mr Marios Koupepides                               "]
[" ( 22714263"]
[" Ê   22378164 "]
[" E-mail address:bop@centralbank.cy  "]
[]
["Mr Christos Charilaou                                    "]
[" ( 22714148                                                        "]
[" Ê   22378164                         "]
[" E-mail address:bop@centralbank.cy  "]

{"sheet":"Λεπτομέρειες Αναφοράς","index":4,"n_rows":77,"n_cols":1,"rows_kept":77,"cut":false,"hidden":false,"merged":[[65,0,65,6],[66,0,66,8],[57,0,57,8],[58,0,58,8],[59,0,59,8],[60,0,60,8],[61,0,61,8],[62,0,62,8],[56,0,56,8],[41,0,41,8],[42,0,42,8],[44,0,44,8],[45,0,45,8],[47,0,47,8],[48,0,48,8],[49,0,49,8],[50,0,50,8],[51,0,51,8],[53,0,53,8],[54,0,54,8],[39,0,39,8],[23,0,23,8],[24,0,24,8],[26,0,26,8],[27,0,27,8],[29,0,29,8],[30,0,30,8],[32,0,32,8],[33,0,33,8],[35,0,35,8],[36,0,36,8],[38,0,38,8],[21,0,21,8],[4,0,4,8],[5,0,5,8],[8,0,8,8],[9,0,9,8],[11,0,11,8],[12,0,12,8],[14,0,14,8],[15,0,15,8],[17,0,17,8],[18,0,18,8],[20,0,20,8]]}
[]
[]
[]
[]
["ΚΕΝΤΡΙΚΗ ΤΡΑΠΕΖΑ ΤΗΣ ΚYΠΡΟY"]
["ΕYΡΩΣYΣΤΗΜΑ"]
[]
[]
["ΕΡEYNA \"OFATS\""]
["Διάρθρωσης και Δραστηριοτήτων Αλλοδαπών Συνδεόμενων Επιχειρήσεων "]
[]
["Σκοπός της Έρευνας"]
["Τα στατιστικά στοιχεία που συλλέγονται μέσω της έρευνας \"OFATS\", χρησιμοποιούνται για να αξιολογηθεί με ακρίβεια (ι) η επέκταση διεθνώς των ελεγχόμενων αλλοδαπών επιχειρήσεων από κυπριακές τελικές θεσμικές μονάδες, και (ιι) η επίδρασή τους στην κυπριακή οικονομία και στην οικονομία της ΕΕ ως σύνολο, σύμφωνα με τη μεθοδολογία και το βαθμό ανάλυσης που ορίζει η Στατιστική Υπηρεσία της Ευρωπαϊκής Επιτροπής (Eurostat)."]
[]
["Σε ποιους απευθύνεται η Έρευνα"]
["Η έρευνα \"OFATS\" απευθύνεται σε νομικές οντότητες κατοίκους Κύπρου, οι οποίες ασκούν έλεγχο σε αλλοδαπές συνδεόμενες επιχειρήσεις, των οποίων η τελική θεσμική μονάδα που τις ελέγχει είναι κάτοικος Κύπρου.   Η  τελική θεσμική μονάδα ελέγχου είναι η θεσμική μονάδα που βρίσκεται στην κορυφή της αλυσίδας ελέγχου της αλλοδαπής συνδεόμενης επιχείρησης και δεν ελέγχεται από άλλη θεσμική μονάδα."]
[]
["Νομικό πλαίσιο"]
["Η συλλογή και παραγωγή των εν λόγω στατιστικών διέπονται από τον Κανονισμό (EC) No 716/2007 του Ευρωπαϊκού Κοινοβουλίου και του Συμβουλίου της 20ης Ιουνίου 2007 για τις Κοινοτικές Στατιστικές καθόσον αφορά τη Διάρθρωση και τη Δραστηριότητα των Αλλοδαπών Συνδεόμενων Επιχειρήσεων και οι περί της Κεντρικής Τράπεζας της Κύπρου Νόμοι του 2002 έως 2017 (ο \"Νόμος\")."]
[]
["Εμπιστευτικότητα"]
["Στοιχεία και πληροφορίες που παρέχονται στην Κεντρική Τράπεζα της Κύπρου τυγχάνουν άκρως εμπιστευτικού χειρισμού, σύμφωνα με τις σχετικές πρόνοιες της εθνικής και Κοινοτικής νομοθεσίας."]
[]
["Συχνότητα αναφοράς και προθεσμία υποβολής στοιχείων"]
["Η Έρευνα  \"OFATS\" διεξάγεται σε ετήσια βάση. Οι σχετικές ετήσιες αναφορές πρέπει να βρίσκονται στην κατοχή της Κεντρικής Τράπεζας της Κύπρου εντός 17 μηνών από τη λήξη του έτους για το οποίο γίνεται η αναφορά. "]
[]
["Ορισμός του \"Κατοίκου Κύπρου\""]
["Τα στοιχεία που υποβάλλονται πρέπει να βασίζονται στον ορισμό του \"κατοίκου Κύπρου\" για στατιστικούς σκοπούς, ο οποίος τέθηκε σε ισχύ την 1η Ιουλίου 2008.  Η σχετική οδηγία μπορεί να βρεθεί στο σύνδεσμο http://www.centralbank.gov.cy/media/pdf_gr/STDRG_RESIDENTDEFINITION2008.pdf."]
[]
["Νόμισμα Αναφοράς"]
["Όλες οι αναφορές θα πρέπει να γίνονται σε ευρώ (κατά προσέγγιση στον πιο κοντινό ακέραιο αριθμό). "]
[]
["Πρόσημο"]
["Με εξαίρεση τα στοιχεία που αναφέρονται στη μεταβλητή \"Προστιθέμενη Αξία σε τιμές κόστους συντελεστών παραγωγής\" στο Έντυπο 2, τα οποία μπορούν να φέρουν θετικό ή αρνητικό πρόσημο, τα στοιχεία πρέπει να δηλώνονται χωρίς πρόσημο. "]
[]
["Αποτίμηση στοιχείων"]
["Όλα τα στοιχεία θα πρέπει να αποτιμώνται με βάση τις τιμές που καταχωρούνται στα λογιστικά βιβλία της αλλοδαπής συνδεόμενης επιχείρησης (ΑΣΕ) και θα πρέπει να δηλώνονται στο ακέραιο ανεξαρτήτως από το ποσοστό ιδιοκτησίας που κατέχει ο κάτοικος Κύπρου."]
[]
["Επιλογή γλώσσας"]
["Η έρευνα είναι διαθέσιμη στα ελληνικά και αγγλικά. Η επιλογή της προτιμητέας γλώσσας μπορεί να γίνει στο πάνω δεξί μέρος της φόρμας 1."]
[]
["Προκαταρκτικά στοιχεία"]
["Σε περίπτωση που, κατά την ημέρα υποβολής των στοιχείων στην Κεντρική Τράπεζα της Κύπρου, τα πραγματικά στοιχεία δεν είναι διαθέσιμα,  θα πρέπει να υποβάλλονται προκαταρκτικά στοιχεία, βασισμένα σε προσεκτικές εκτιμήσεις, έτσι ώστε να επιτυγχάνεται η υποβολή των στοιχείων εντός των καθορισμένων χρονικών πλαισίων."]
[]
["Οικονομική δραστηριότητα"]
["Σε περίπτωση που η ΑΣΕ έχει περισσότερη από μια οικονομική δραστηριότητα, τότε μόνο η κύρια οικονομική δραστηριότητα της πρέπει να επιλεγεί. Δηλαδή, για κάθε αλλοδαπή συνδεόμενη επιχείρηση θα πρέπει να δηλώνεται μόνο μία οικονομική δραστηριότητα."]
[]
["Τεχνικές πληροφορίες και επαλήθευση στοιχείων"]
["Το πρότυπο της έρευνας έχει ενσωματωμένους διάφορους περιορισμούς και ελέγχους (που αναφέρονται είτε σε κατάλογο με συγκεκριμένες τιμές για τις διάφορες μεταβλητές, είτε σε προκαθορισμένους ελέγχους στην excel, είτε σε Macros) για να βοηθήσουν τις μονάδες αναφοράς στην συμπλήρωση και αποστολή στοιχείων με συνέπεια.  Για την επιτυχή συμπλήρωση και αποστολή του προτύπου πρέπει να ληφθούν υπόψη τα πιο κάτω:"]
["* Τα διάφορα Macros που έχουν κτιστεί στην excel χρησιμοποιούνται για σκοπούς επαλήθευσης, και για το λόγο αυτό θα πρέπει πάντοτε να είναι ενεργοποιημένα."]
["* Όταν ο χώρος που παρέχεται στο πρότυπο  δεν είναι επαρκής, τότε η μονάδα αναφοράς πρέπει να προσθέσει επιπρόσθετες στήλες μέσω του ειδικού κουμπιού \"Προσθέστε γραμμές\""]
["* Μετά τη συμπλήρωση της έρευνας και προκειμένου το σύστημα να εκτελέσει τους εσωτερικούς ελέγχους που έχουν ενσωματωθεί στο πρότυπο, θα πρέπει να γίνει \"Επικύρωση Υποβολής\", πατώντας το αντίστοιχο κουμπί στο Έντυπο 1. Οποιαδήποτε μηνύματα λάθους (αν υπάρχουν) θα εμφανιστούν στο φύλλο εργασίας \"Σφάλματα Επικύρωσης\", και θα σας βοηθήσουν να εντοπίσετε και να επιλύσετε τυχόν λάθη. Όλα τα λάθη θα πρέπει να επιλυθούν πριν την αποστολή του προτύπου στην Κεντρική Τράπεζα της Κύπρου."]
[]
["Τρόπος υποβολής στοιχείων"]
["Η Έρευνα \"OFATS\"  θα πρέπει να υποβάλλεται στην Κεντρική Τράπεζα της Κύπρου μέσω ηλεκτρονικού ταχυδρομείου στη διεύθυνση bop@centralbank.cy με την ένδειξη «Έρευνα \"OFATS\"». "]
[]
["Στοιχεία Επικοινωνίας"]
["Η αλληλογραφία που αφορά  την Έρευνα \"OFATS\"  θα πρέπει να αποστέλλεται στην πιο κάτω διεύθυνση:"]
["Υπηρεσία Eξωτερικών & Γενικών Οικονομικών Στατιστικών"]
["Τμήμα Στατιστικής"]
["ΚΕΝΤΡΙΚΗ ΤΡΑΠΕΖΑ ΤΗΣ ΚΥΠΡΟΥ"]
["Τ.Θ.  25529"]
["1395 Λευκωσία"]
[]
[]
["Πρόσωπα επικοινωνίας:"]
["Για περισσότερες πληροφορίες ή/και διευκρινίσεις, παρακαλούμε όπως επικοινωνείτε με τα ακόλουθα άτομα:"]
[]
["κ. Μάριο Κουπεπίδη                                 "]
[" ( 22714263"]
[" Ê   22378164 "]
[" Ηλεκτρονική διεύθυνση:bop@centralbank.cy  "]
[]
["κα. Τζούλη Ιωάννου                                      "]
[" ( 22714262                                                        "]
[" Ê   22378164                         "]
[" Ηλεκτρονική διεύθυνση:bop@centralbank.cy  "]

{"sheet":"Definitions - Explanations","index":5,"n_rows":29,"n_cols":1,"rows_kept":29,"cut":false,"hidden":true,"merged":[]}
["Foreign affiliate enterprise (FAE)"]
["‘Foreign affiliate enterprise’ shall mean an enterprise not resident in Cyprus over which an institutional unit resident in Cyprus has control."]
[]
["Ultimate controlling institutional unit (UCI)"]
["‘Ultimate controlling institutional unit' of a foreign affiliate shall mean the institutional unit, proceeding up a foreign affiliate’s chain of control, which is not controlled by another institutional unit."]
[]
["Control"]
["‘Control’ shall mean the ability to determine the general policy of an enterprise by choosing appropriate directors, if necessary.\n\nDirect control: An institutional unit may have direct control over an enterprise  when it owns directly more than half of its shareholders’ voting power or more than half of its shares\n\nIndirect control: An institutional unit may have indirect control over an enterprise  through its FAE, if the FAE exerts control over  that specific enterprise. For example, in the figure below, enterprise A has direct control over enterprises B, C, D, and indirect control over E and F. Enterprise G is not included as it is not controlled by D .\n\n\n\n\n\n\n\n\n\n\nEffective minority control: An institutional unit may have effective control on a FAE without owning, directly or indirectly,  more than half of the shareholders’ voting power or more than half of the shares. The most common case is when the institutional unit is a minority but large shareholder while the other shareholders are numerous and none of them holds a significant share of the capital. The minority shareholder can thus exercise effective control insofar as no majority of shareholders is really able to oppose it.\n\nGovernment control: Control can be exerted by a government through a legislation decree or regulation, which empowers the government to determine corporate policy or to appoint the directors."]
[]
["Foreign control"]
["Foreign control means that the controlling institutional unit is resident in a different country from the one where the institutional unit over which it has control is resident."]
[]
["Institutional unit"]
["The institutional unit is an elementary economic decision-making centre characterised by uniformity of behaviour and decision-making autonomy in the exercise of its principal function. A unit is regarded as constituting an institutional unit if it has decision-making autonomy in respect of its principal function and keeps a complete set of accounts:\n• In order to be said to have autonomy of decision in respect of its principal function, a unit must be responsible and accountable for the decisions and actions it takes.\n• In order to be said to keep a complete set of accounts, a unit must keep accounting records covering all its economic and financial transactions carried out during the accounting period, as well as a balance sheet of assets and liabilities.\n\nThe following are deemed to be institutional units:\n• units which have a complete set of accounts and autonomy of decision:\n   (a) private and public companies, public corporations;\n   (b) cooperatives or partnerships recognised as independent legal entities;\n   (c) public enterprises which by virtue of special legislation are recognised as independent legal entities;\n   (d) non-profit institutions recognised as independent legal entities;\n   (e) agencies of general government;\n• units which have a complete set of accounts and which, by convention, are deemed to have autonomy of decision:\n   (f) quasi-corporate enterprises: sole proprietorships, partnerships and public enterprises, other than those referred to  in points (a), (b) and (c), in so far as their economic and financial behaviour can be separated from that of their owners and resembles that of corporate enterprises;\n• units which do not necessarily keep a complete set of accounts but which by convention are deemed to have autonomy of decision:\n   (g) households."]
[]
["\"Distinctive Enterprise\""]
["The enterprises that fall under the \"Distinctive Enterprise” category, for the purpose of this survey, do not entail employment and physical presence in the jurisdiction in which they are incorporated. \n\"Distinctive Enterprise\" category includes holding companies and special purpose entities (SPEs). SPEs and holding companies are legal entities that are used by their parent enteprises to raise capital or to hold assets and liabilities. They do not undertake significant production themselves and will notmally have little or no employment, or physical presence in the jurisdiction they are incorporated. Examples include financing subsidiaries, conduits, shell companies, shelf companies. "]
[]
["Turnover"]
["Turnover includes all invoiced sales and receipts for goods and/or services, transport, insurance and packaging costs invoiced to customers, all duties and taxes on goods and/or services (except VAT) passed onto the customer.  \nExcluded: VAT, other operating income, financial and exceptional income, net proceeds on the disposal of capital goods, subsidies received from public authorities and the European Community."]
[]
["Number of persons employed"]
["Number of persons employed includes all workers paid directly from the payroll, working proprietors, partners and unpaid family members, those temporarily absent but still being paid (e.g. those on maternity leave). \nExcluded: Agency workers not on your payroll, voluntary workers, self employed workers."]
[" "]
["Personnel costs"]
["Personnel costs include the total remuneration, in cash or in kind, payable to an employee (regular and temporary employees as well as home workers), in return for work done by the latter during the reference period.  \nIncluded: \n• Taxes and employee’s social security contributions retained by the unit\n• Employer’s social security costs (i.e. contributions to schemes for retirement pensions, sickness, maternity, disability, unemployment, occupational accidents and diseases),\n• Gratuities, \n• Workplace and performance bonuses, \n• Thirteenth salary, \n• Payments made to employees in consideration of dismissal, lodging, transport, cost of living and family allowances,\n• Commissions, \n• Fees for attending educational programmes.\nExcluded: Payments for agency workers."]
[]
["Value added at factor cost"]
["Value added at factor cost is the gross income from operating activities after adjusting for operating subsidies and indirect taxes. \nMethods of calculation: \n(1) Turnover( + ) capitalised production  (+ ) other operating income (including operating subsidies)  (+/- ) changes in stocks  ( - )  purchases of goods and services (-) other taxes on products which are linked to turnover but not deductible  (-)  duties and taxes linked to production.  \n(2)   gross operating surplus (+)  personnel costs.  Value adjustments, such as depreciation and impairment losses, are not subtracted.  \nThe value added at factor costs is defined: \nFor insurance companies: Production value (-) gross value of reinsurance services received (-) other intermediate consumption.  \nFor credit institutions (banks) and pension funds: Production value (-) total purchases of goods and services (commissions payable plus other administrative expenses and other operating charges).  \nExcluded: Income and expenditure classified as financial in company accounts, as well as income and expenditure classified as interest income, dividend income, foreign exchange gain from foreign currency borrowings related to interest costs, gains on redemption and extinguishment of debt or finance costs."]

{"sheet":"Ορισμοί - Επεξηγήσεις","index":6,"n_rows":29,"n_cols":1,"rows_kept":29,"cut":false,"hidden":false,"merged":[]}
["Αλλοδαπή συνδεόμενη επιχείρηση (ΑΣΕ)"]
["Αλλοδαπή συνδεόμενη επιχείρηση είναι μια επιχείρηση μη μόνιμος κάτοικος Κύπρου, η οποία ελέγχεται από μια θεσμική μονάδα μόνιμο κάτοικο Κύπρου."]
[]
["Τελική θεσμική μονάδα"]
["Τελική θεσμική μονάδα που ελέγχει αλλοδαπή συνδεόμενη επιχείρηση είναι η θεσμική μονάδα, που βρίσκεται στην κορυφή της αλυσίδας ελέγχου μιας αλλοδαπής συνδεόμενης επιχείρησης, η οποία δεν ελέγχεται από άλλη θεσμική μονάδα."]
[]
["Έλεγχος"]
["Έλεγχος θεωρείται η ικανότητα καθορισμού της γενικής πολιτικής μιας επιχείρησης μέσω της επιλογής των διευθυντών, εάν αυτό κριθεί απαραίτητο.\n\nΆμεσος έλεγχος:  Μια θεσμική μονάδα μπορεί να έχει τον άμεσο έλεγχο μιας ΑΣΕ όταν κατέχει άμεσα πάνω από το ήμισυ των δικαιωμάτων ψήφου των μετόχων της ή πάνω από το ήμισυ των μετοχών της.\n\nΈμμεσος έλεγχος: Μια θεσμική μονάδα μπορεί να έχει έμμεσο έλεγχο επί μιας επιχείρησης μέσω της ΑΣΕ της, αν η ΑΣΕ ασκεί έλεγχο επί της συγκεκριμένης επιχείρησης. Για παράδειγμα, στο πιο κάτω διάγραμμα, η επιχείρηση Α έχει άμεσο έλεγχο στις επιχειρήσεις B, Γ και Δ και έμμεσο έλεγχο στις επιχειρήσεις Ε και Ζ. Η επιχείρηση Η δεν περιλαμβάνεται καθώς δεν ελέγχεται από την Δ. \n\n\n\n\n\n\n\n\nΑποτελεσματικός έλεγχος μειοψηφίας: Μια θεσμική μονάδα μπορεί να έχει αποτελεσματικό έλεγχο σε ΑΣΕ, χωρίς να κατέχει, άμεσα ή έμμεσα, περισσότερο από το ήμισυ των δικαιωμάτων ψήφου των μετόχων ή περισσότερες από τις μισές μετοχές. Η πιο συνηθισμένη περίπτωση είναι όταν η θεσμική μονάδα είναι κατέχει μεγάλο αριθμό μετοχών χωρίς όμως να ξεπερνά το 50%, ενώ οι υπόλοιποι μέτοχοι είναι μεγάλοι σε αριθμό και κανένας από αυτούς δεν κατέχει σημαντικό μερίδιο μετοχών. Η εν λόγω θεσμική μονάδα μπορεί έτσι να ασκεί αποτελεσματικό έλεγχο, δεδομένου ότι κανένας μέτοχος δεν είναι σε θέση να αντιταχθεί σε αυτό.\n\nΚυβερνητικός έλεγχος: Ο έλεγχος μπορεί να ασκείται από την κυβέρνηση μέσω ενός νομοθετικού διατάγματος ή κανονισμού, το οποίο εξουσιοδοτεί την κυβέρνηση να καθορίζει την πολιτική της εταιρείας ή να διορίζει τους διευθυντές."]
[]
["Έλεγχος από την αλλοδαπή"]
["Έλεγχος από την αλλοδαπή συμβαίνει όταν η ελέγχουσα θεσμική μονάδα είναι μόνιμος κάτοικος διαφορετικής χώρας από αυτήν της οποίας είναι μόνιμος κάτοικος η θεσμική μονάδα την οποία ελέγχει."]
[]
["Θεσμική μονάδα"]
["Η θεσμική μονάδα είναι ένα κέντρο λήψης οικονομικών αποφάσεων, το οποίο χαρακτηρίζεται από ομοιομορφία συμπεριφοράς και αυτονομία σε θέματα λήψης αποφάσεων κατά την άσκηση της κύριας λειτουργίας της. Μια μονάδα θεωρείται ότι αποτελεί θεσμική μονάδα όταν έχει αυτονομία λήψης αποφάσεων όσον αφορά την κύρια λειτουργία της και τηρεί πλήρη σειρά λογαρισαμών ή είναι σε θέση να καταρτίζει πλήρη σειρά λογαριασμών:\n• για να θεωρηθεί ότι έχει αυτονομία αποφάσεων όσον αφορά την κύρια δραστηριότητά της, η μονάδα πρέπει να είναι υπεύθυνη και υπόλογη για τις αποφάσεις και τις ενέργειες στις οποίες προβαίνει.\n• για να θεωρηθεί ότι τηρεί πλήρη σειρά λογαριασμών, η μονάδα πρέπει να τηρεί λογιστικά βιβλία που να καλύπτουν όλες τις οικονομικές και χρηματοοικονομικές συναλλαγές που διεξάγει κατά τη διάρκεια της λογιστικής περιόδου, καθώς και ισολογισμό των στοιχείων του ενεργητικού και του παθητικού.\nΤα ακόλουθα θεωρούνται ως θεσμικές μονάδες:\n• μονάδες που τηρούν πλήρη σειρά λογαριασμών και έχουν αυτονομία λήψης αποφάσεων:\n   (α) ιδιωτικές και δημόσιες εταιρείες, δημόσιες επιχειρήσεις,\n   (β) συνεταιρισμοί ή συνεταιρικές επιχειρήσεις που αναγνωρίζονται ως ανεξάρτητες νομικές οντότητες,\n   (γ) δημόσιοι παραγωγοί οι οποίοι, σύμφωνα με ειδική νομοθετική ρύθμιση, αναγνωρίζονται ως ανεξάρτητες νομικές οντότητες,\n   (δ) μη κερδοσκοπικά ιδρύματα που αναγνωρίζονται ως ανεξάρτητες νομικές οντότητες, \n   (ε) οργανισμοί της γενικής κυβέρνησης.\n• μονάδες που τηρούν πλήρη σειρά λογαριασμών και οι οποίες θεωρούνται ότι έχουν αυτονομία λήψης αποφάσεων: \n   (στ) οιονεί εταιρείες: ατομικές επιχειρήσεις, συνεταιρισμούς και δημόσιες επιχειρήσεις, εκτός από εκείνες που αναφέρονται στα σημεία (α), (β) και (γ), στο μέτρο που η οικονομική και χρηματοπιστωτική τους δραστηριότητα μπορεί να διαχωριστεί από εκείνη των ιδιοκτητών τους και συγγενεύει με τη δραστηριότητα των εταιρικών επιχειρήσεων.\n• μονάδες που δεν τηρούν απαραιτήτως πλήρη σειρά λογαριασμών, οι οποίες όμως θεωρούνται ότι έχουν αυτονομία λήψης αποφάσεων:\n   (ζ) νοικοκυριά.\n\n"]
[]
["\"Διακριτική Οντότητα\""]
["Για σκοπούς της παρούσας έρευνας, οι εταιρείες που εμπτίπτουν στην κατηγορία \"Διακριτική Οντότητα\", δεν προϋποθέτουν την ύπαρξη απασχόλησης και φυσικής παρουσίας στη χώρα εγκατάστασης της \"ΑΣΕ\".\nΟι εταιρείες στην κατηγορία \"Διακριτική Οντότητα\" περιλαμβάνουν τις εταιρείες χαρτοφυλακίου και εταιρείες ειδικού σκοπού (ΕΕΣ). Οι ΕΕΣ και οι εταιρείες χαρτοφυλακίου συνήθως χρησιμοποιούνται από τις μητρικές τους επιχειρήσεις για την άντληση κεφαλαίων ή τη διατήρηση περιουσιακών στοιχείων και υποχρεώσεων. Αυτές δεν πραγματοποιούν σημαντική παραγωγή, δεν έχουν φυσική παρουσία στη χώρα εκγκατάστασης τους και έχουν ελάχιστη ή καθόλου απασχόληση. Παραδείγματα περιλαμβάνουν θυγατρικές χρηματοδότησης, εταιρείες μεσάζων (conduits), εταιρείες κέλυφους (shell companies) και εταιρείες \"ράφι\" (shelf companies).\n"]
[]
["Κύκλος εργασιών"]
["Ο κύκλος εργασιών περιλαμβάνει όλες τις πωλήσεις και έσοδα για αγαθά και/ή υπηρεσίες, τα έξοδα μεταφοράς, ασφάλισης και συσκευασίας που πληρώνουν οι πελάτες, όλους τους δασμούς και φόρους στα αγαθά και/ή στις υπηρεσίες (εκτός από το Φ.Π.Α) που μεταφέρονται στον πελάτη. \nΕξαιρούνται: Φ.Π.Α, άλλα λειτουργικά έσοδα, χρηματοοικονομικά ειδικά (exceptional) έσοδα, καθαρές εισπράξεις από τη διάθεση κεφαλαιουχικών αγαθών, επιχορηγήσεις που λαμβάνονται από δημόσιες αρχές και την Ευρωπαϊκή Κοινότητα."]
[]
["Αριθμός ατόμων που εργοδοτούνται"]
["Ο αριθμός ατόμων που εργοδοτούνται περιλαμβάνει όλους τους εργαζομένους που πληρώνονται απευθείας από το μισθολόγιο, τους εργαζόμενους ιδιοκτήτες, συνεργάτες και μέλη της οικογένειας που δεν πληρώνονται, τους προσωρινά απόντες οι οποίοι πληρώνονται (π.χ. αυτοί που είναι σε άδεια μητρότητας). \nΕξαιρούνται: Αντιπρόσωποι που δεν είναι στο μισθολόγιο, εργαζόμενοι σε εθελοντική βάση, αυτο-εργοδοτούμενοι."]
[]
["Δαπάνες προσωπικού"]
["Περιλαμβάνει τις συνολικές αμοιβές σε μετρητά ή είδος, πληρωτέα σε ένα εργοδοτούμενο (κανονικούς ή προσωρινούς εργαζομένους, καθώς και υπαλλήλους που εργάζονται από το σπίτι), ως αντάλλαγμα για την εργασία που έχει προσφέρει κατά τη διάρκεια της περιόδου αναφοράς.  \nΣτην κατηγορία αυτή περιλαμβάνονται: \n• Φόροι και εισφορές κοινωνικής ασφάλισης του εργαζομένου που παρακρατούνται από την μονάδα αναφοράς,\n• Δαπάνες κοινωνικής ασφάλισης του εργοδότη (δηλ. οι συνεισφορές στα σχέδια συνταξιοδότησης, ασθένειας, μητρότητας, ανικανότητας, ανεργίας και εργατικών ατυχημάτων), \n• Φιλοδωρήματα, \n• Επιδόματα εργασιακού χώρου και απόδοσης (δηλ.  υπερωρίες,εργασία τη νύχτα, απόλυση, κατοικία, μεταφορά, κόστος ζωής και οικογενειακά επιδόματα),\n• Δέκατος τρίτος μισθός,\n• Προμήθειες,\n• Δίδακτρα συμμετοχής σε εκπαιδευτικά προγράμματα.\n\nΕξαιρούνται: Οι πληρωμές για τους εργαζομένους αντιπροσωπειών."]
[]
["Προστιθέμενη αξία σε τιμές κόστους συντελεστών παραγωγής"]
["Προστιθέμενη αξία σε τιμές κόστους συντελεστών παραγωγής είναι το μεικτό εισόδημα από τις λειτουργικές δραστηριότητες  αφού γίνουν οι κατάλληλες προσαρμογές για τις λειτουργικές επιδοτήσεις και τους έμμεσους φόρους. \nΤρόποι υπολογισμού: \n(1) Κύκλος εργασιών ( + ) Κεφαλαιοποιημένη παραγωγή  (+ ) Άλλο λειτουργικό εισόδημα (συμπεριλαμβανομένων των λειτουργικών επιδοτήσεων  (+/- ) Αλλαγές στα αποθέματα  ( - ) τις αγορές των αγαθών και υπηρεσιών (-) Άλλους φόρους στα προϊόντα που είναι συνδεμένα με τον κύκλο εργασιών αλλά δεν έχουν αφαιρεθεί   (-)  τους δασμούς και τους φόρους που συνδέονται με την παραγωγή.  \n(2)  Μεικτό λειτουργικό πλεόνασμα (+)  Δαπάνες προσωπικού.  Οι αναπροσαρμογές  στην αξία, όπως η απόσβεση και οι ζημιές λόγω απομείωσης  δεν αφαιρούνται.  \nΗ προστιθέμενη αξία σε τιμές κόστους συντελεστών παραγωγής ορίζεται: \nΓια τις ασφαλιστικές εταιρείες: Ως η αξία παραγωγής (-) τη μεικτή αξία των υπηρεσιών αντασφάλισης που λαμβάνονται (-) οποιαδήποτε άλλη ενδιάμεση κατανάλωση.  \nΓια τα πιστωτικά ιδρύματα (τράπεζες) και συνταξιοδοτικά ταμεία: Ως η αξία παραγωγής (-) τις συνολικές αγορές αγαθών και υπηρεσιών (πληρωτέες προμήθειες συν άλλα διοικητικά έξοδα και λειτουργικές χρεώσεις).  \n\nΕξαιρούνται: Το εισόδημα και η δαπάνη που ταξινομούνται ως χρηματοοικονομικά στους λογαριασμούς της επιχείρησης, καθώς επίσης και το εισόδημα και η δαπάνη που ταξινομούνται ως εισόδημα από τόκους, εισόδημα μερισμάτων, κέρδος συναλλάγματος από τις δανειοληψίες ξένου νομίσματος σχετικές με τις δαπάνες ενδιαφέροντος, τα κέρδη από την εξαγορά και την απόσβεση του χρέους ή οι δαπάνες χρηματοδότησης αποκλείονται από την προστιθέμενη αξία."]

{"sheet":"Σφάλματα Επικύρωσης","index":7,"n_rows":1,"n_cols":7,"rows_kept":1,"cut":false,"hidden":false,"merged":[]}
[{"$f":"IF(LANG_SELECTED=\"GR\",\"Αριθμός Σφαλμάτων=\",\"Error Count =\")","v":"Αριθμός Σφαλμάτων="},0,null,{"$f":"IF(LANG_SELECTED=\"GR\",\"Φύλλο Εργασίας\",\"Worksheet\")","v":"Φύλλο Εργασίας"},{"$f":"IF(LANG_SELECTED=\"GR\",\"Αριθμός Γραμμής\",\"Row Number\")","v":"Αριθμός Γραμμής"},{"$f":"IF(LANG_SELECTED=\"GR\",\"Αριθμός Στήλης\",\"Table Column(s)\")","v":"Αριθμός Στήλης"},{"$f":"IF(LANG_SELECTED=\"GR\",\"Περιγραφή\",\"Description\")","v":"Περιγραφή"}]